Workbook

Sheet Inputs
C3: TCRP E-09
C4: TRANSIT STATE OF GOOD REPAIR
C5: CONDITION-BASED MODEL - INPUTS
C7: INSTRUCTIONS
C9: Note: this model is used to predict the average annual cost and prioritization values for
C10: transit assets based on asset condition for guideway, facilities, systems and stations.
C11: Default deterioration rates have been derived from the FTA TERM model.
C12: To use this model please follow these instructions, and see the TCRP E-09 report for more information.
D13: 1. Open the spreadsheet with macros enabled and the Solver installed.
D14: 2. Select an asset type from the dropdown or select "User-Specified" if developing a new model.
D15: 3. Enter the asset replacement cost.
D16: 4. Enter the rehabilitation cost (set greater than or equal to replacement cost if rehabilitation is infeasible).
D17: 5. If desired enter the discount rate (7% by default).
D18: 6. If desired click the "Click to Edit Details" button to edit additional model details.
D19: 7. To view results click the "Click for Results" button.
C21: SUMMARY INPUTS
C23: Asset: | E23: User-Specified
F25: Override
E26: Default | F26: Value | G26: Notes
C28: Unit Agency Replacement Cost ($): | E28: 1 | F28: 1700
C29: Unit Agency Rehabilitation Cost ($): | E29: 1 | F29: 629 | G29: Set to greater than or equal to replacement if infeasible
C30: Discount Rate %: | E30: 0.07
C32: Asset List
C33: User-Specified
C34: Guideway-At Grade Ballasted or Expressway
C35: Guideway-Grade Crossing
C36: Guideway-Elevated Structure
C37: Guideway-Steel Viaduct
C38: Guideway-Bridge
C39: Guideway-Foot Walk
C40: Guideway-Elevated Fill
C41: Guideway-Tunnel
C42: Guideway-Retained Cut
C43: Guideway-Tangent Direct Fixation Track
C44: Guideway-Curved Direct Fixation Track
C45: Guideway-Guarded Direct Fixation Track
C46: Guideway-Direct Fixation Tangent Platform Track
C47: Guideway-Direct Fixation Curved Platform Track
C48: Guideway-Guarded Curved Direct Fixation Track
C49: Guideway-Tangent Ballasted Track
C50: Guideway-Curved Ballasted Track
C51: Guideway-Guarded Ballasted Track
C52: Guideway-Ballasted Tangent Platform Track
C53: Guideway-Ballasted Curved Platform Track
C54: Guideway-Guarded Platform Ballasted Track
C55: Guideway-Tangent Embedded Track
C56: Guideway-Curved Embedded Track
C57: Guideway-At-Grade Crossing
C58: Guideway-Special Trackwork
C59: Guideway-Direct Fixation Diamond Crossover
C60: Guideway-Direct Fixation or Ballasted Turnout
C61: Guideway-Turntable
C62: Guideway-Yard Track
C63: Guideway-Wood Tie
C64: Guideway-Concrete Tie
C65: Guideway-Retaining Wall
C66: Guideway-At Grade Bus
C67: Guideway-Bus Turnaround
C68: Guideway-Elevated-Bus
C69: Guideway-Subway Bus
C70: Facilities-Administrative Building
C71: Facilities-Maintenance Building
C72: Facilities-Passenger Building
C73: Facilities-Building Utilities
C74: Facilities-Access and Parking
C75: Facilities-Building Utilities-Elevators and Conveying Systems
C76: Facilities-Building Utilities-Generator
C77: Facilities-Storage Yard
C78: Facilities-Storage Yard-Bus
C79: Facilities-Bus Turnaround Facility
C80: Facilities-Maintenance Equipment
C81: Facilities-Pollution Treatment
C82: Facilities-Bus Washer
C83: Facilities-Train Washer
C84: Facilities-Vehicle Paintbooth
C85: Facilities-Fuel Island
C86: Facilities-Dynamoneter
C87: Facilities-Portable Lift
C88: Facilities-Fixed Lift
C89: Facilities-Wheel Truing Machine
C90: Facilities-Brake Lathe
C91: Facilities-Major Rail Shop
C92: Facilities-Major Bus Shop
C93: Facilities-Train Control Center
C94: Systems-Train Control, Elec., Comm., Revenue Collect. & Util.
C95: Systems-Train Control
C96: Systems-Train Control
C97: Systems-Signals & Train Stops
C98: Systems-Train Control Cable
C99: Systems-Signal Bridge
C100: Systems-Centralized Train Control
C101: Systems-Gates, Flashers, Crossings
C102: Systems-Roadway Traffic Signals
C103: Systems-Interlocking
C104: Systems-Electrification
C105: Systems-Electrification Catenary/Pole
C106: Systems-Electrification Substation
C107: Systems-High Tension Towers
C108: Systems-Electrification Substation Building Components
C109: Systems-Electrification Breaker House
C110: Systems-Electrification Contact Rail/Protection Boards
C111: Systems-Heaters
C112: Systems-Power Cable
C113: Systems-Electrical Systems
C114: Systems-Trolley Wire
C115: Systems-Communications Cable
C116: Systems-Communciations
C117: Systems-MIS/IT/Network System
C118: Systems-Emergency Location System
C119: Systems-SCADA RTU
C120: Systems-Communications Hut or Room
C121: Systems-Bus On-Board Video System
C122: Systems-Central Revenue Collection
C123: Systems-Coin/Bill Counter
C124: Systems-Revenue Collection System-Rail
C125: Systems-Turnstile
C126: Systems-In Station Revenue Collection Equipment
C127: Systems-Parking Meter
C128: Systems-Change Machine
C129: Systems-Passenger Counter-Rail
C130: Systems-System Utilities
C131: Systems-Lighting
C132: Systems-Guideway Drainage
C133: Systems-Pump Room
C134: Systems-Deep Utility Well
C135: Systems-Sump Pump/Discharge Pipes
C136: Systems-Subway Ventilation
C137: Systems-Fan Plant
C138: Systems-Compressed Air Pipes
C139: Systems-Air Conditioning/HVAC-Subway
C140: Systems-Emergency Exit
C141: Systems-Tunnel Handrail
C142: Systems-ITS, APC, AVL, CAD, GPL
C143: Station-Building-Rail
C144: Stations-Building-Subway
C145: Stations-Shelter-Rail
C146: Stations-Token Booth
C147: Stations-Elevator/Escalator
C148: Stations-Parking Garage/Lot
C149: Stations-Parking Equipment
C150: Stations-Pedestrian Walkway/Elevated
C151: Stations-Pedestrian Walkway/Subway
C152: Stations-At-Grade Rail Platform
C153: Stations-Elevated Rail Platform
C154: Stations-Subway Rail Platform
C155: Stations-Building/Ground Access-Bus
C156: Stations-Bus Shelter
C157: Stations-Station Canopy
C158: Stations-Bus Station Platform
C159: Stations-Signage & Graphics
C160: Stations-Ferry Terminal Building/Dock

Sheet Results
C3: TCRP E-09
C4: TRANSIT STATE OF GOOD REPAIR
C5: CONDITION-BASED MODEL - RESULTS
C7: SUMMARY RESULTS
C9: Asset: | D9: =Inputs!E23 -> User-Specified
C10: Average Annual Unit Agency Cost: | F10: =U69 -> 93.19354839
C11: Average Annual Unit User Cost: | F11: =F12-F10 -> 16.38709677
C12: Average Annual Unit Total Cost: | F12: =V69 -> 109.5806452
C15: RESULTS BY CONDITION STATE
E17: Recommended | G17: Unit Agency | H17: Prioritization
C18: Condition State | E18: Action | G18: Cost | H18: Index
C20: =Details!C53 -> 5-Excellent | E20: =D63 -> 0-Do Minimum | G20: =F63 -> 69 | H20: =M63 -> 0
C21: =Details!C56 -> 4-Good | E21: =D64 -> 0-Do Minimum | G21: =F64 -> 69 | H21: =M64 -> 0
C22: =Details!C59 -> 3-Adequate | E22: =D65 -> 0-Do Minimum | G22: =F65 -> 88 | H22: =M65 -> 0
C23: =Details!C62 -> 2-Marginal | E23: =D66 -> 1-Rehab | G23: =F66 -> 629 | H23: =M66 -> 0.03440297963
C24: =Details!C65 -> 1-Poor | E24: =D67 -> 1-Rehab | G24: =F67 -> 629 | H24: =M67 -> 0.1857397513
C28: Objective Function
C29: =SUM(Results!D33:E38) -> 23174.89549
C31: Decision Variables
C32: Description
C33: ="State "&Details!C53 -> State 5-Excellent | D33: 1155.826891 | E33: 1239.60742
C34: ="State "&Details!C56 -> State 4-Good | D34: 1297.384538 | E34: 1498.457808
C35: ="State "&Details!C59 -> State 3-Adequate | D35: 1637.12289 | E35: 1969.89874
C36: ="State "&Details!C62 -> State 2-Marginal | D36: 1841.508914 | E36: 2257.427858
C37: ="State "&Details!C65 -> State 1-Poor | D37: 1841.508914 | E37: 2313.427858
C38: ="State "&Details!C68 -> State 0-Failed | D38: 2780.212047 | E38: 3342.511608
C40: Results by State and Action
E41: Optimal | F41: Agency | G41: Total | I41: Benefit | M41: Constraints | N41: 0
C42: State | D42: Action | E42: Action? | F42: Cost | G42: Cost | H42: LT Cost | I42: Agency | K42: User | L42: Total | M42: Agency | N42: Total
C43: =Details!C53 -> 5-Excellent | D43: =Details!D53 -> 0-Do Minimum | E43: =IF(H43=MIN(H43:H45),"Y","") -> Y | F43: =Details!E53 -> 69 | G43: =Details!E53+Details!F53 -> 69 | H43: =Results!E$33+Results!N43 -> 1239.60742 | I43: =Results!M$43-Results!M43 -> 0 | K43: =L43-I43 -> 0 | L43: =Results!N$43-Results!N43 -> 0 | M43: =Details!$E53-D33+Results!$D$74*(Details!$G53*$D$33+Details!$H53*$D$34+Details!$I53*$D$35+Details!$J53*$D$36+Details!$K53*$D$37+Details!$L53*$D$38) -> 6.593836588e-12 | N43: =Results!$G43-E33+Results!$D$74*(Details!$G53*$E$33+Details!$H53*$E$34+Details!$I53*$E$35+Details!$J53*$E$36+Details!$K53*$E$37+Details!$L53*$E$38) -> 8.185452316e-12
D44: =Details!D54 -> 1-Rehab | E44: =IF(H44=MIN(H43:H45),"Y","") ->  | F44: =Details!E54 -> 629 | G44: =Details!E54+Details!F54 -> 829 | H44: =Results!E$33+Results!N44 -> 1987.511608 | I44: =Results!M$43-Results!M44 -> -553.3851567 | K44: -194.5190308 | L44: =Results!N$43-Results!N44 -> -747.9041875 | M44: =Details!$E54-D33+Results!$D$74*(Details!$G54*$D$33+Details!$H54*$D$34+Details!$I54*$D$35+Details!$J54*$D$36+Details!$K54*$D$37+Details!$L54*$D$38) -> 553.3851567 | N44: =Results!$G44-E33+Results!$D$74*(Details!$G54*$E$33+Details!$H54*$E$34+Details!$I54*$E$35+Details!$J54*$E$36+Details!$K54*$E$37+Details!$L54*$E$38) -> 747.9041875
D45: =Details!D55 -> 2-Replace | E45: =IF(H45=MIN(H43:H45),"Y","") ->  | F45: =Details!E55 -> 1700 | G45: =Details!E55+Details!F55 -> 2100 | H45: =Results!E$33+Results!N45 -> 3258.511608 | I45: =Results!M$43-Results!M45 -> -1624.385157 | K45: -394.5190308 | L45: =Results!N$43-Results!N45 -> -2018.904187 | M45: =Details!$E55-D33+Results!$D$74*(Details!$G55*$D$33+Details!$H55*$D$34+Details!$I55*$D$35+Details!$J55*$D$36+Details!$K55*$D$37+Details!$L55*$D$38) -> 1624.385157 | N45: =Results!$G45-E33+Results!$D$74*(Details!$G55*$E$33+Details!$H55*$E$34+Details!$I55*$E$35+Details!$J55*$E$36+Details!$K55*$E$37+Details!$L55*$E$38) -> 2018.904187
C46: =Details!C56 -> 4-Good | D46: =Details!D56 -> 0-Do Minimum | E46: =IF(H46=MIN(H46:H48),"Y","") -> Y | F46: =Details!E56 -> 69 | G46: =Details!E56+Details!F56 -> 76 | H46: =Results!E$34+Results!N46 -> 1498.457808 | I46: =Results!M$46-Results!M46 -> 0 | K46: 0 | L46: =Results!N$46-Results!N46 -> 0 | M46: =Details!$E56-D34+Results!$D$74*(Details!$G56*$D$33+Details!$H56*$D$34+Details!$I56*$D$35+Details!$J56*$D$36+Details!$K56*$D$37+Details!$L56*$D$38) -> 9.094947018e-12 | N46: =Results!$G46-E34+Results!$D$74*(Details!$G56*$E$33+Details!$H56*$E$34+Details!$I56*$E$35+Details!$J56*$E$36+Details!$K56*$E$37+Details!$L56*$E$38) -> 1.11413101e-11
D47: =Details!D57 -> 1-Rehab | E47: =IF(H47=MIN(H46:H48),"Y","") ->  | F47: =Details!E57 -> 629 | G47: =Details!E57+Details!F57 -> 836 | H47: =Results!E$34+Results!N47 -> 2236.427858 | I47: =Results!M$46-Results!M47 -> -544.124376 | K47: -193.8456739 | L47: =Results!N$46-Results!N47 -> -737.9700499 | M47: =Details!$E57-D34+Results!$D$74*(Details!$G57*$D$33+Details!$H57*$D$34+Details!$I57*$D$35+Details!$J57*$D$36+Details!$K57*$D$37+Details!$L57*$D$38) -> 544.124376 | N47: =Results!$G47-E34+Results!$D$74*(Details!$G57*$E$33+Details!$H57*$E$34+Details!$I57*$E$35+Details!$J57*$E$36+Details!$K57*$E$37+Details!$L57*$E$38) -> 737.9700499
D48: =Details!D58 -> 2-Replace | E48: =IF(H48=MIN(H46:H48),"Y","") ->  | F48: =Details!E58 -> 1700 | G48: =Details!E58+Details!F58 -> 2107 | H48: =Results!E$34+Results!N48 -> 3265.511608 | I48: =Results!M$46-Results!M48 -> -1482.82751 | K48: -284.2262895 | L48: =Results!N$46-Results!N48 -> -1767.053799 | M48: =Details!$E58-D34+Results!$D$74*(Details!$G58*$D$33+Details!$H58*$D$34+Details!$I58*$D$35+Details!$J58*$D$36+Details!$K58*$D$37+Details!$L58*$D$38) -> 1482.82751 | N48: =Results!$G48-E34+Results!$D$74*(Details!$G58*$E$33+Details!$H58*$E$34+Details!$I58*$E$35+Details!$J58*$E$36+Details!$K58*$E$37+Details!$L58*$E$38) -> 1767.053799
C49: =Details!C59 -> 3-Adequate | D49: =Details!D59 -> 0-Do Minimum | E49: =IF(H49=MIN(H49:H51),"Y","") -> Y | F49: =Details!E59 -> 88 | G49: =Details!E59+Details!F59 -> 102 | H49: =Results!E$35+Results!N49 -> 1969.89874 | I49: =Results!M$49-Results!M49 -> 0 | K49: 0 | L49: =Results!N$49-Results!N49 -> 0 | M49: =Details!$E59-D35+Results!$D$74*(Details!$G59*$D$33+Details!$H59*$D$34+Details!$I59*$D$35+Details!$J59*$D$36+Details!$K59*$D$37+Details!$L59*$D$38) -> 8.640199667e-12 | N49: =Results!$G49-E35+Results!$D$74*(Details!$G59*$E$33+Details!$H59*$E$34+Details!$I59*$E$35+Details!$J59*$E$36+Details!$K59*$E$37+Details!$L59*$E$38) -> 1.045918907e-11
D50: =Details!D60 -> 1-Rehab | E50: =IF(H50=MIN(H49:H51),"Y","") ->  | F50: =Details!E60 -> 629 | G50: =Details!E60+Details!F60 -> 843 | H50: =Results!E$35+Results!N50 -> 2243.427858 | I50: =Results!M$49-Results!M50 -> -204.3860233 | K50: -69.14309484 | L50: =Results!N$49-Results!N50 -> -273.5291181 | M50: =Details!$E60-D35+Results!$D$74*(Details!$G60*$D$33+Details!$H60*$D$34+Details!$I60*$D$35+Details!$J60*$D$36+Details!$K60*$D$37+Details!$L60*$D$38) -> 204.3860233 | N50: =Results!$G50-E35+Results!$D$74*(Details!$G60*$E$33+Details!$H60*$E$34+Details!$I60*$E$35+Details!$J60*$E$36+Details!$K60*$E$37+Details!$L60*$E$38) -> 273.5291181
D51: =Details!D61 -> 2-Replace | E51: =IF(H51=MIN(H49:H51),"Y","") ->  | F51: =Details!E61 -> 1700 | G51: =Details!E61+Details!F61 -> 2114 | H51: =Results!E$35+Results!N51 -> 3272.511608 | I51: =Results!M$49-Results!M51 -> -1143.089157 | K51: -159.5237105 | L51: =Results!N$49-Results!N51 -> -1302.612867 | M51: =Details!$E61-D35+Results!$D$74*(Details!$G61*$D$33+Details!$H61*$D$34+Details!$I61*$D$35+Details!$J61*$D$36+Details!$K61*$D$37+Details!$L61*$D$38) -> 1143.089157 | N51: =Results!$G51-E35+Results!$D$74*(Details!$G61*$E$33+Details!$H61*$E$34+Details!$I61*$E$35+Details!$J61*$E$36+Details!$K61*$E$37+Details!$L61*$E$38) -> 1302.612867
C52: =Details!C62 -> 2-Marginal | D52: =Details!D62 -> 0-Do Minimum | E52: =IF(H52=MIN(H52:H54),"Y","") ->  | F52: =Details!E62 -> 88 | G52: =Details!E62+Details!F62 -> 116 | H52: =Results!E$36+Results!N52 -> 2279.067333 | I52: =Results!M$52-Results!M52 -> 0 | K52: 0 | L52: =Results!N$52-Results!N52 -> 0 | M52: =Details!$E62-D36+Results!$D$74*(Details!$G62*$D$33+Details!$H62*$D$34+Details!$I62*$D$35+Details!$J62*$D$36+Details!$K62*$D$37+Details!$L62*$D$38) -> 11.39208666 | N52: =Results!$G52-E36+Results!$D$74*(Details!$G62*$E$33+Details!$H62*$E$34+Details!$I62*$E$35+Details!$J62*$E$36+Details!$K62*$E$37+Details!$L62*$E$38) -> 21.63947419
D53: =Details!D63 -> 1-Rehab | E53: =IF(H53=MIN(H52:H54),"Y","") -> Y | F53: =Details!E63 -> 629 | G53: =Details!E63+Details!F63 -> 857 | H53: =Results!E$36+Results!N53 -> 2257.427858 | I53: =Results!M$52-Results!M53 -> 11.39208666 | K53: 10.24738753 | L53: =Results!N$52-Results!N53 -> 21.63947419 | M53: =Details!$E63-D36+Results!$D$74*(Details!$G63*$D$33+Details!$H63*$D$34+Details!$I63*$D$35+Details!$J63*$D$36+Details!$K63*$D$37+Details!$L63*$D$38) -> -6.752998161e-11 | N53: =Results!$G53-E36+Results!$D$74*(Details!$G63*$E$33+Details!$H63*$E$34+Details!$I63*$E$35+Details!$J63*$E$36+Details!$K63*$E$37+Details!$L63*$E$38) -> -7.798917068e-11
D54: =Details!D64 -> 2-Replace | E54: =IF(H54=MIN(H52:H54),"Y","") ->  | F54: =Details!E64 -> 1700 | G54: =Details!E64+Details!F64 -> 2128 | H54: =Results!E$36+Results!N54 -> 3286.511608 | I54: =Results!M$52-Results!M54 -> -927.311047 | K54: -80.13322811 | L54: =Results!N$52-Results!N54 -> -1007.444275 | M54: =Details!$E64-D36+Results!$D$74*(Details!$G64*$D$33+Details!$H64*$D$34+Details!$I64*$D$35+Details!$J64*$D$36+Details!$K64*$D$37+Details!$L64*$D$38) -> 938.7031337 | N54: =Results!$G54-E36+Results!$D$74*(Details!$G64*$E$33+Details!$H64*$E$34+Details!$I64*$E$35+Details!$J64*$E$36+Details!$K64*$E$37+Details!$L64*$E$38) -> 1029.083749
C55: =Details!C65 -> 1-Poor | D55: =Details!D65 -> 0-Do Minimum | E55: =IF(H55=MIN(H55:H57),"Y","") ->  | F55: =Details!E65 -> 88 | G55: =Details!E65+Details!F65 -> 172 | H55: =Results!E$37+Results!N55 -> 2430.258162 | I55: =Results!M$55-Results!M55 -> 0 | K55: 0 | L55: =Results!N$55-Results!N55 -> 0 | M55: =Details!$E65-D37+Results!$D$74*(Details!$G65*$D$33+Details!$H65*$D$34+Details!$I65*$D$35+Details!$J65*$D$36+Details!$K65*$D$37+Details!$L65*$D$38) -> 55.25671907 | N55: =Results!$G55-E37+Results!$D$74*(Details!$G65*$E$33+Details!$H65*$E$34+Details!$I65*$E$35+Details!$J65*$E$36+Details!$K65*$E$37+Details!$L65*$E$38) -> 116.8303036
D56: =Details!D66 -> 1-Rehab | E56: =IF(H56=MIN(H55:H57),"Y","") -> Y | F56: =Details!E66 -> 629 | G56: =Details!E66+Details!F66 -> 913 | H56: =Results!E$37+Results!N56 -> 2313.427858 | I56: =Results!M$55-Results!M56 -> 55.25671907 | K56: 61.57358452 | L56: =Results!N$55-Results!N56 -> 116.8303036 | M56: =Details!$E66-D37+Results!$D$74*(Details!$G66*$D$33+Details!$H66*$D$34+Details!$I66*$D$35+Details!$J66*$D$36+Details!$K66*$D$37+Details!$L66*$D$38) -> -6.730260793e-11 | N56: =Results!$G56-E37+Results!$D$74*(Details!$G66*$E$33+Details!$H66*$E$34+Details!$I66*$E$35+Details!$J66*$E$36+Details!$K66*$E$37+Details!$L66*$E$38) -> -7.798917068e-11
D57: =Details!D67 -> 2-Replace | E57: =IF(H57=MIN(H55:H57),"Y","") ->  | F57: =Details!E67 -> 1700 | G57: =Details!E67+Details!F67 -> 2184 | H57: =Results!E$37+Results!N57 -> 3342.511608 | I57: =Results!M$55-Results!M57 -> -883.4464146 | K57: -28.80703112 | L57: =Results!N$55-Results!N57 -> -912.2534457 | M57: =Details!$E67-D37+Results!$D$74*(Details!$G67*$D$33+Details!$H67*$D$34+Details!$I67*$D$35+Details!$J67*$D$36+Details!$K67*$D$37+Details!$L67*$D$38) -> 938.7031337 | N57: =Results!$G57-E37+Results!$D$74*(Details!$G67*$E$33+Details!$H67*$E$34+Details!$I67*$E$35+Details!$J67*$E$36+Details!$K67*$E$37+Details!$L67*$E$38) -> 1029.083749
C58: =Details!C68 -> 0-Failed | D58: =Details!D68 -> 0-Replace | E58: Y | F58: =Details!E68 -> 1700 | G58: =Details!E68+Details!F68 -> 2184 | H58: =Results!E$38+Results!N58 -> 3342.511608 | I58: N/A | K58: N/A | L58: N/A | M58: =Details!$E68-D38+Results!$D$74*(Details!$G68*$D$33+Details!$H68*$D$34+Details!$I68*$D$35+Details!$J68*$D$36+Details!$K68*$D$37+Details!$L68*$D$38) -> 7.071321306e-11 | N58: =Results!$G58-E38+Results!$D$74*(Details!$G68*$E$33+Details!$H68*$E$34+Details!$I68*$E$35+Details!$J68*$E$36+Details!$K68*$E$37+Details!$L68*$E$38) -> -2.053184289e-10
C60: Results by State
F61: Cost | I61: Benefit | N61: TP | T61: SS | U61: Steady State Cost
C62: State | D62: Opt. Action | F62: Agency | G62: Total | H62: LT | I62: Agency | K62: User | L62: Total | M62: PI | N62: 5 | O62: 4 | P62: 3 | Q62: 2 | R62: 1 | S62: 0 | T62: Distrib | U62: Agency | V62: Total
C63: =C43 -> 5-Excellent | D63: =IF($E43="Y",D43,IF($E44="Y",D44,D45)) -> 0-Do Minimum | F63: =IF($E43="Y",F43,IF($E44="Y",F44,F45)) -> 69 | G63: 69 | H63: 1239.60742 | I63: =IF($E43="Y",I43,IF($E44="Y",I44,I45)) -> 0 | K63: 0 | L63: 0 | M63: =IF(F63>0,L63/F63,"N/A") -> 0 | N63: =IF($E43="Y",Details!G53,IF($E44="Y",Details!G54,Details!G55)) -> 0.95 | O63: =IF($E43="Y",Details!H53,IF($E44="Y",Details!H54,Details!H55)) -> 0.05 | P63: =IF($E43="Y",Details!I53,IF($E44="Y",Details!I54,Details!I55)) -> 0 | Q63: =IF($E43="Y",Details!J53,IF($E44="Y",Details!J54,Details!J55)) -> 0 | R63: =IF($E43="Y",Details!K53,IF($E44="Y",Details!K54,Details!K55)) -> 0 | S63: =IF($E43="Y",Details!L53,IF($E44="Y",Details!L54,Details!L55)) -> 0 | T63: =1/(2-N63+(1-N67)*(D75*(D79*(D82*D84+D83)+D80*D84+D81)+D76*(D82*D84+D83)+D77*D84+D78)+(1-N66)*(D79*(D82*D84+D83)+D80*D84+D81)+(1-N65)*(D82*D84+D83)+(1-N64)*D84) -> 3.581364596e-16 | U63: =F63*$T63 -> 2.471141571e-14 | V63: 2.471141571e-14
C64: =C46 -> 4-Good | D64: =IF($E46="Y",D46,IF($E47="Y",D47,D48)) -> 0-Do Minimum | F64: =IF($E46="Y",F46,IF($E47="Y",F47,F48)) -> 69 | G64: 76 | H64: 1498.457808 | I64: =IF($E46="Y",I46,IF($E47="Y",I47,I48)) -> 0 | K64: 0 | L64: 0 | M64: =IF(F64>0,L64/F64,"N/A") -> 0 | N64: =IF($E46="Y",Details!G56,IF($E47="Y",Details!G57,Details!G58)) -> 0 | O64: =IF($E46="Y",Details!H56,IF($E47="Y",Details!H57,Details!H58)) -> 0.95 | P64: =IF($E46="Y",Details!I56,IF($E47="Y",Details!I57,Details!I58)) -> 0.05 | Q64: =IF($E46="Y",Details!J56,IF($E47="Y",Details!J57,Details!J58)) -> 0 | R64: =IF($E46="Y",Details!K56,IF($E47="Y",Details!K57,Details!K58)) -> 0 | S64: =IF($E46="Y",Details!L56,IF($E47="Y",Details!L57,Details!L58)) -> 0 | T64: =D84*T63 -> 0.6451612903 | U64: 44.51612903 | V64: 49.03225806
C65: =C49 -> 3-Adequate | D65: =IF($E49="Y",D49,IF($E50="Y",D50,D51)) -> 0-Do Minimum | F65: =IF($E49="Y",F49,IF($E50="Y",F50,F51)) -> 88 | G65: 102 | H65: 1969.89874 | I65: =IF($E49="Y",I49,IF($E50="Y",I50,I51)) -> 0 | K65: 0 | L65: 0 | M65: =IF(F65>0,L65/F65,"N/A") -> 0 | N65: =IF($E49="Y",Details!G59,IF($E50="Y",Details!G60,Details!G61)) -> 0 | O65: =IF($E49="Y",Details!H59,IF($E50="Y",Details!H60,Details!H61)) -> 0 | P65: =IF($E49="Y",Details!I59,IF($E50="Y",Details!I60,Details!I61)) -> 0.9 | Q65: =IF($E49="Y",Details!J59,IF($E50="Y",Details!J60,Details!J61)) -> 0.1 | R65: =IF($E49="Y",Details!K59,IF($E50="Y",Details!K60,Details!K61)) -> 0 | S65: =IF($E49="Y",Details!L59,IF($E50="Y",Details!L60,Details!L61)) -> 0 | T65: =D82*T64+D83*T63 -> 0.3225806452 | U65: 28.38709677 | V65: 32.90322581
C66: =C52 -> 2-Marginal | D66: =IF($E52="Y",D52,IF($E53="Y",D53,D54)) -> 1-Rehab | F66: =IF($E52="Y",F52,IF($E53="Y",F53,F54)) -> 629 | G66: 857 | H66: 2257.427858 | I66: =IF($E52="Y",I52,IF($E53="Y",I53,I54)) -> 11.39208666 | K66: 10.24738753 | L66: 21.63947419 | M66: =IF(F66>0,L66/F66,"N/A") -> 0.03440297963 | N66: =IF($E52="Y",Details!G62,IF($E53="Y",Details!G63,Details!G64)) -> 0 | O66: =IF($E52="Y",Details!H62,IF($E53="Y",Details!H63,Details!H64)) -> 1 | P66: =IF($E52="Y",Details!I62,IF($E53="Y",Details!I63,Details!I64)) -> 0 | Q66: =IF($E52="Y",Details!J62,IF($E53="Y",Details!J63,Details!J64)) -> 0 | R66: =IF($E52="Y",Details!K62,IF($E53="Y",Details!K63,Details!K64)) -> 0 | S66: =IF($E52="Y",Details!L62,IF($E53="Y",Details!L63,Details!L64)) -> 0 | T66: =D79*T65+D80*T64+D81*T63 -> 0.03225806452 | U66: 20.29032258 | V66: 27.64516129
C67: =C55 -> 1-Poor | D67: =IF($E55="Y",D55,IF($E56="Y",D56,D57)) -> 1-Rehab | F67: =IF($E55="Y",F55,IF($E56="Y",F56,F57)) -> 629 | G67: 913 | H67: 2313.427858 | I67: =IF($E55="Y",I55,IF($E56="Y",I56,I57)) -> 55.25671907 | K67: 61.57358452 | L67: 116.8303036 | M67: =IF(F67>0,L67/F67,"N/A") -> 0.1857397513 | N67: =IF($E55="Y",Details!G65,IF($E56="Y",Details!G66,Details!G67)) -> 0 | O67: =IF($E55="Y",Details!H65,IF($E56="Y",Details!H66,Details!H67)) -> 1 | P67: =IF($E55="Y",Details!I65,IF($E56="Y",Details!I66,Details!I67)) -> 0 | Q67: =IF($E55="Y",Details!J65,IF($E56="Y",Details!J66,Details!J67)) -> 0 | R67: =IF($E55="Y",Details!K65,IF($E56="Y",Details!K66,Details!K67)) -> 0 | S67: =IF($E55="Y",Details!L65,IF($E56="Y",Details!L66,Details!L67)) -> 0 | T67: =D75*T66+D76*T65+D77*T64+D78*T63 -> 0 | U67: 0 | V67: 0
C68: =C58 -> 0-Failed | D68: =D58 -> 0-Replace | F68: =F58 -> 1700 | G68: 2184 | H68: 3342.511608 | I68: =I58 -> N/A | K68: N/A | L68: N/A | M68: N/A | N68: =Details!G68 -> 1 | O68: =Details!H68 -> 0 | P68: =Details!I68 -> 0 | Q68: =Details!J68 -> 0 | R68: =Details!K68 -> 0 | S68: =Details!L68 -> 0 | T68: =1-T67-T66-T65-T64-T63 -> -2.506955217e-17 | U68: -4.261823869e-14 | V68: -5.475190194e-14
C69: Total | T69: =SUM(T63:T68) -> 1 | U69: =SUM(U63:U68) -> 93.19354839 | V69: =SUM(V63:V68) -> 109.5806452
C71: Misc. Parameters
C72: Description | D72: Value
C73: Disc. Rate | D73: =IF(Inputs!$F$30<>"",Inputs!$F$30,Inputs!$E$30) -> 0.07
C74: Disc. Factor | D74: =1/(1+D73) -> 0.9345794393
C75: c1 | D75: =R66/(1-R67) -> 0
C76: c2 | D76: =R65/(1-R67) -> 0
C77: c3 | D77: =R64/(1-R67) -> 0
C78: c4 | D78: =R63/(1-R67) -> 0
C79: c5 | D79: =(Q67*D76+Q65)/(1-Q66-Q67*D75) -> 0.1
C80: c6 | D80: =(Q67*D77+Q64)/(1-Q66-Q67*D75) -> 0
C81: c7 | D81: =(Q67*D78+Q63)/(1-Q66-Q67*D75) -> 0
C82: c8 | D82: =(P67*D75*D80+P67*D77+P66*D80+P64)/(1-P65-P67*D75*D79-P67*D76-P66*D79) -> 0.5
C83: c9 | D83: =(P67*D75*D81+P67*D78+P66*D81+P63)/(1-P65-P67*D75*D79-P67*D76-P66*D79) -> 0
C84: c10 | D84: =(O67*D75*D79*D83+O67*D75*D81+O67*D76*D83+O67*D78+O66*D79*D83+O66*D81+O65*D83+O63)/(1-O64-O67*D75*D79*D82-O67*D75*D80-O67*D76*D82-O67*D77-O66*D79*D82-O66*D80-O65*D82) -> 1.801439851e+15
C86: Asset List
C87: User-Specified
C88: Guideway-At Grade Ballasted or Expressway
C89: Guideway-Grade Crossing
C90: Guideway-Elevated Structure
C91: Guideway-Steel Viaduct
C92: Guideway-Bridge
C93: Guideway-Foot Walk
C94: Guideway-Elevated Fill
C95: Guideway-Tunnel
C96: Guideway-Retained Cut
C97: Guideway-Tangent Direct Fixation Track
C98: Guideway-Curved Direct Fixation Track
C99: Guideway-Guarded Direct Fixation Track
C100: Guideway-Direct Fixation Tangent Platform Track
C101: Guideway-Direct Fixation Curved Platform Track
C102: Guideway-Guarded Curved Direct Fixation Track
C103: Guideway-Tangent Ballasted Track
C104: Guideway-Curved Ballasted Track
C105: Guideway-Guarded Ballasted Track
C106: Guideway-Ballasted Tangent Platform Track
C107: Guideway-Ballasted Curved Platform Track
C108: Guideway-Guarded Platform Ballasted Track
C109: Guideway-Tangent Embedded Track
C110: Guideway-Curved Embedded Track
C111: Guideway-At-Grade Crossing
C112: Guideway-Special Trackwork
C113: Guideway-Direct Fixation Diamond Crossover
C114: Guideway-Direct Fixation or Ballasted Turnout
C115: Guideway-Turntable
C116: Guideway-Yard Track
C117: Guideway-Wood Tie
C118: Guideway-Concrete Tie
C119: Guideway-Retaining Wall
C120: Guideway-At Grade Bus
C121: Guideway-Bus Turnaround
C122: Guideway-Elevated-Bus
C123: Guideway-Subway Bus
C124: Facilities-Administrative Building
C125: Facilities-Maintenance Building
C126: Facilities-Passenger Building
C127: Facilities-Building Utilities
C128: Facilities-Access and Parking
C129: Facilities-Building Utilities-Elevators and Conveying Systems
C130: Facilities-Building Utilities-Generator
C131: Facilities-Storage Yard
C132: Facilities-Storage Yard-Bus
C133: Facilities-Bus Turnaround Facility
C134: Facilities-Maintenance Equipment
C135: Facilities-Pollution Treatment
C136: Facilities-Bus Washer
C137: Facilities-Train Washer
C138: Facilities-Vehicle Paintbooth
C139: Facilities-Fuel Island
C140: Facilities-Dynamoneter
C141: Facilities-Portable Lift
C142: Facilities-Fixed Lift
C143: Facilities-Wheel Truing Machine
C144: Facilities-Brake Lathe
C145: Facilities-Major Rail Shop
C146: Facilities-Major Bus Shop
C147: Facilities-Train Control Center
C148: Systems-Train Control, Elec., Comm., Revenue Collect. & Util.
C149: Systems-Train Control
C150: Systems-Train Control
C151: Systems-Signals & Train Stops
C152: Systems-Train Control Cable
C153: Systems-Signal Bridge
C154: Systems-Centralized Train Control
C155: Systems-Gates, Flashers, Crossings
C156: Systems-Roadway Traffic Signals
C157: Systems-Interlocking
C158: Systems-Electrification
C159: Systems-Electrification Catenary/Pole
C160: Systems-Electrification Substation
C161: Systems-High Tension Towers
C162: Systems-Electrification Substation Building Components
C163: Systems-Electrification Breaker House
C164: Systems-Electrification Contact Rail/Protection Boards
C165: Systems-Heaters
C166: Systems-Power Cable
C167: Systems-Electrical Systems
C168: Systems-Trolley Wire
C169: Systems-Communications Cable
C170: Systems-Communciations
C171: Systems-MIS/IT/Network System
C172: Systems-Emergency Location System
C173: Systems-SCADA RTU
C174: Systems-Communications Hut or Room
C175: Systems-Bus On-Board Video System
C176: Systems-Central Revenue Collection
C177: Systems-Coin/Bill Counter
C178: Systems-Revenue Collection System-Rail
C179: Systems-Turnstile
C180: Systems-In Station Revenue Collection Equipment
C181: Systems-Parking Meter
C182: Systems-Change Machine
C183: Systems-Passenger Counter-Rail
C184: Systems-System Utilities
C185: Systems-Lighting
C186: Systems-Guideway Drainage
C187: Systems-Pump Room
C188: Systems-Deep Utility Well
C189: Systems-Sump Pump/Discharge Pipes
C190: Systems-Subway Ventilation
C191: Systems-Fan Plant
C192: Systems-Compressed Air Pipes
C193: Systems-Air Conditioning/HVAC-Subway
C194: Systems-Emergency Exit
C195: Systems-Tunnel Handrail
C196: Systems-ITS, APC, AVL, CAD, GPL
C197: Station-Building-Rail
C198: Stations-Building-Subway
C199: Stations-Shelter-Rail
C200: Stations-Token Booth
C201: Stations-Elevator/Escalator
C202: Stations-Parking Garage/Lot
C203: Stations-Parking Equipment
C204: Stations-Pedestrian Walkway/Elevated
C205: Stations-Pedestrian Walkway/Subway
C206: Stations-At-Grade Rail Platform
C207: Stations-Elevated Rail Platform
C208: Stations-Subway Rail Platform
C209: Stations-Building/Ground Access-Bus
C210: Stations-Bus Shelter
C211: Stations-Station Canopy
C212: Stations-Bus Station Platform
C213: Stations-Signage & Graphics
C214: Stations-Ferry Terminal Building/Dock

Sheet Details
C3: TCRP E-09
C4: TRANSIT STATE OF GOOD REPAIR
C5: CONDITION-BASED MODEL - DETAILED INPUTS
C7: Defaults Based on Summary Inputs | H7: Asset: | L7: =Inputs!$E$23 -> User-Specified
E9: Unit Cost | G9: Probability of Transition to State
C10: State | D10: Action | E10: Agency | F10: User | G10: =C11 -> 5-Excellent | H10: =C14 -> 4-Good | I10: =C17 -> 3-Adequate | J10: =C20 -> 2-Marginal | K10: =C23 -> 1-Poor | L10: =C26 -> 0-Failed
C11: 5-Excellent | D11: 0-Do Minimum | E11: 0 | F11: 0 | G11: =VLOOKUP(Inputs!$E$23,Details!$C$73:$G$200,2) -> 0.95 | H11: =1-G11 -> 0.05 | I11: 0 | J11: 0 | K11: 0 | L11: =1-SUM(G11:K11) -> 0
D12: 1-Rehab | E12: =IF(Inputs!F29<>"",Inputs!F29,Inputs!E29) -> 629 | F12: 0 | G12: 0 | H12: 1 | I12: 0 | J12: 0 | K12: 0 | L12: 0
D13: 2-Replace | E13: =IF(Inputs!F28<>"",Inputs!F28,Inputs!E28) -> 1700 | F13: 0 | G13: 1 | H13: 0 | I13: 0 | J13: 0 | K13: 0 | L13: 0
C14: 4-Good | D14: 0-Do Minimum | E14: 0 | F14: 0 | G14: 0 | H14: =VLOOKUP(Inputs!$E$23,Details!$C$73:$G$200,3) -> 0.92 | I14: =1-H14 -> 0.08 | J14: 0 | K14: 0 | L14: 0
D15: 1-Rehab | E15: =E12 -> 629 | F15: 0 | G15: 0 | H15: 1 | I15: 0 | J15: 0 | K15: 0 | L15: 0
D16: 2-Replace | E16: =E13 -> 1700 | F16: 0 | G16: 1 | H16: 0 | I16: 0 | J16: 0 | K16: 0 | L16: 0
C17: 3-Adequate | D17: 0-Do Minimum | E17: 0 | F17: 0 | G17: 0 | H17: 0 | I17: =VLOOKUP(Inputs!$E$23,Details!$C$73:$G$200,4) -> 0.9 | J17: =1-I17 -> 0.1 | K17: 0 | L17: 0
D18: 1-Rehab | E18: =E12 -> 629 | F18: 0 | G18: 0 | H18: 1 | I18: 0 | J18: 0 | K18: 0 | L18: 0
D19: 2-Replace | E19: =E13 -> 1700 | F19: 0 | G19: 1 | H19: 0 | I19: 0 | J19: 0 | K19: 0 | L19: 0
C20: 2-Marginal | D20: 0-Do Minimum | E20: =E22*0.05 -> 85 | F20: 0 | G20: 0 | H20: 0 | I20: 0 | J20: =VLOOKUP(Inputs!$E$23,Details!$C$73:$G$200,5) -> 0.85 | K20: =(1-J20)/2 -> 0.075 | L20: 0.075
D21: 1-Rehab | E21: =E12 -> 629 | F21: 0 | G21: 0 | H21: 1 | I21: 0 | J21: 0 | K21: 0 | L21: 0
D22: 2-Replace | E22: =E13 -> 1700 | F22: 0 | G22: 1 | H22: 0 | I22: 0 | J22: 0 | K22: 0 | L22: 0
C23: 1-Poor | D23: 0-Do Minimum | E23: =E25*0.1 -> 170 | F23: 0 | G23: 0 | H23: 0 | I23: 0 | J23: 0 | K23: =J20 -> 0.85 | L23: 0.15
D24: 1-Rehab | E24: =E12 -> 629 | F24: 0 | G24: 0 | H24: 1 | I24: 0 | J24: 0 | K24: 0 | L24: 0
D25: 2-Replace | E25: =E13 -> 1700 | F25: 0 | G25: 1 | H25: 0 | I25: 0 | J25: 0 | K25: 0 | L25: 0
C26: 0-Failed | D26: 0-Replace | E26: =E13*1.5 -> 2550 | F26: =E13*1.5 -> 2550 | G26: 1 | H26: 0 | I26: 0 | J26: 0 | K26: 0 | L26: 0
C28: Override Values | H28: Asset: | L28: =Inputs!$E$23 -> User-Specified
E30: Unit Cost | G30: Probability of Transition to State
C31: State | D31: Action | E31: Agency | F31: User | G31: =IF(C32<>"",C32,G10) -> 5-Excellent | H31: =IF(C35<>"",C35,H10) -> 4-Good | I31: =IF(C38<>"",C38,I10) -> 3-Adequate | J31: =IF(C41<>"",C41,J10) -> 2-Marginal | K31: =IF(C44<>"",C44,K10) -> 1-Poor | L31: =L10 -> 0-Failed
D32: 0-Do Minimum | E32: 69 | F32: 0 | G32: 0.95 | H32: 0.05 | I32: 0 | J32: 0 | K32: 0
D33: 1-Rehab | E33: 629 | F33: 200 | G33: 1 | H33: 0 | I33: 0 | J33: 0 | K33: 0
D34: 2-Replace | E34: 1700 | F34: 400 | G34: 1 | H34: 0 | I34: 0 | J34: 0 | K34: 0
D35: 0-Do Minimum | E35: 69 | F35: 7 | G35: 0 | H35: 0.95 | I35: 0.05 | J35: 0 | K35: 0
D36: 1-Rehab | E36: 629 | F36: 207 | G36: 0 | H36: 1 | I36: 0 | J36: 0 | K36: 0
D37: 2-Replace | E37: 1700 | F37: 407 | G37: 1 | H37: 0 | I37: 0 | J37: 0 | K37: 0
D38: 0-Do Minimum | E38: 88 | F38: 14 | G38: 0 | H38: 0 | I38: 0.9 | J38: 0.1 | K38: 0
D39: 1-Rehab | E39: 629 | F39: 214 | G39: 0 | H39: 1 | I39: 0 | J39: 0 | K39: 0
D40: 2-Replace | E40: 1700 | F40: 414 | G40: 1 | H40: 0 | I40: 0 | J40: 0 | K40: 0
D41: 0-Do Minimum | E41: 88 | F41: 28 | G41: 0 | H41: 0 | I41: 0 | J41: 0.9 | K41: 0.05
D42: 1-Rehab | E42: 629 | F42: 228 | G42: 0 | H42: 1 | I42: 0 | J42: 0 | K42: 0
D43: 2-Replace | E43: 1700 | F43: 428 | G43: 1 | H43: 0 | I43: 0 | J43: 0 | K43: 0
D44: 0-Do Minimum | E44: 88 | F44: 84 | G44: 0 | H44: 0 | I44: 0 | J44: 0 | K44: 0.9
D45: 1-Rehab | E45: 629 | F45: 284 | G45: 0 | H45: 1 | I45: 0 | J45: 0 | K45: 0
D46: 2-Replace | E46: 1700 | F46: 484 | G46: 1 | H46: 0 | I46: 0 | J46: 0 | K46: 0
C47: =C26 -> 0-Failed | D47: 0-Replace | E47: 1700 | F47: 484 | G47: 1 | H47: 0 | I47: 0 | J47: 0 | K47: 0 | L47: =1-SUM(G47:K47) -> 0
C49: Resulting Values | H49: Asset: | L49: =Inputs!$E$23 -> User-Specified
E51: Unit Cost | G51: Probability of Transition to State
C52: State | D52: Action | E52: Agency | F52: User | G52: =G31 -> 5-Excellent | H52: 4-Good | I52: 3-Adequate | J52: 2-Marginal | K52: 1-Poor | L52: 0-Failed
C53: =IF(C32<>"",C32,C11) -> 5-Excellent | D53: =IF(D32<>"",D32,D11) -> 0-Do Minimum | E53: 69 | F53: 0 | G53: 0.95 | H53: 0.05 | I53: 0 | J53: 0 | K53: 0 | L53: =1-SUM(G53:K53) -> 0
D54: =IF(D33<>"",D33,D12) -> 1-Rehab | E54: 629 | F54: 200 | G54: 1 | H54: 0 | I54: 0 | J54: 0 | K54: 0 | L54: 0
D55: =IF(D34<>"",D34,D13) -> 2-Replace | E55: 1700 | F55: 400 | G55: 1 | H55: 0 | I55: 0 | J55: 0 | K55: 0 | L55: 0
C56: =IF(C35<>"",C35,C14) -> 4-Good | D56: 0-Do Minimum | E56: 69 | F56: 7 | G56: 0 | H56: 0.95 | I56: 0.05 | J56: 0 | K56: 0 | L56: 0
D57: =IF(D36<>"",D36,D15) -> 1-Rehab | E57: 629 | F57: 207 | G57: 0 | H57: 1 | I57: 0 | J57: 0 | K57: 0 | L57: 0
D58: =IF(D37<>"",D37,D16) -> 2-Replace | E58: 1700 | F58: 407 | G58: 1 | H58: 0 | I58: 0 | J58: 0 | K58: 0 | L58: 0
C59: =IF(C38<>"",C38,C17) -> 3-Adequate | D59: 0-Do Minimum | E59: 88 | F59: 14 | G59: 0 | H59: 0 | I59: 0.9 | J59: 0.1 | K59: 0 | L59: 0
D60: =IF(D39<>"",D39,D18) -> 1-Rehab | E60: 629 | F60: 214 | G60: 0 | H60: 1 | I60: 0 | J60: 0 | K60: 0 | L60: 0
D61: =IF(D40<>"",D40,D19) -> 2-Replace | E61: 1700 | F61: 414 | G61: 1 | H61: 0 | I61: 0 | J61: 0 | K61: 0 | L61: 0
C62: =IF(C41<>"",C41,C20) -> 2-Marginal | D62: 0-Do Minimum | E62: 88 | F62: 28 | G62: 0 | H62: 0 | I62: 0 | J62: 0.9 | K62: 0.05 | L62: 0.05
D63: =IF(D42<>"",D42,D21) -> 1-Rehab | E63: 629 | F63: 228 | G63: 0 | H63: 1 | I63: 0 | J63: 0 | K63: 0 | L63: 0
D64: =IF(D43<>"",D43,D22) -> 2-Replace | E64: 1700 | F64: 428 | G64: 1 | H64: 0 | I64: 0 | J64: 0 | K64: 0 | L64: 0
C65: =IF(C44<>"",C44,C23) -> 1-Poor | D65: 0-Do Minimum | E65: 88 | F65: 84 | G65: 0 | H65: 0 | I65: 0 | J65: 0 | K65: 0.9 | L65: 0.1
D66: =IF(D45<>"",D45,D24) -> 1-Rehab | E66: 629 | F66: 284 | G66: 0 | H66: 1 | I66: 0 | J66: 0 | K66: 0 | L66: 0
D67: =IF(D46<>"",D46,D25) -> 2-Replace | E67: 1700 | F67: 484 | G67: 1 | H67: 0 | I67: 0 | J67: 0 | K67: 0 | L67: 0
C68: =IF(C47<>"",C47,C26) -> 0-Failed | D68: 0-Replace | E68: 1700 | F68: 484 | G68: 1 | H68: 0 | I68: 0 | J68: 0 | K68: 0 | L68: 0
C71: Model Lookup
C72: Asset | D72: 5 | E72: 4 | F72: 3 | G72: 2
C73: Facilities-Access and Parking | D73: 0.9808341882 | E73: 0.9587049164 | F73: 0.9287843724 | G73: 0.8848084477
C74: Facilities-Administrative Building | D74: 0.9860947683 | E74: 0.9643442431 | F74: 0.9353949327 | G74: 0.8933936869
C75: Facilities-Brake Lathe | D75: 0.9502212361 | E75: 0.9168104918 | F75: 0.8681948307 | G75: 0.7939250194
C76: Facilities-Building Utilities | D76: 0.9581932584 | E76: 0.9308754626 | F76: 0.8911396305 | G76: 0.8302700924
C77: Facilities-Building Utilities-Elevators and Conveying Systems | D77: 0.9024682884 | E77: 0.8382336071 | F77: 0.7443222554 | G77: 0.6014047961
C78: Facilities-Building Utilities-Generator | D78: 0.9024682884 | E78: 0.8382336071 | F78: 0.7443222554 | G78: 0.6014047961
C79: Facilities-Bus Turnaround Facility | D79: 0.9472406183 | E79: 0.9133206199 | F79: 0.8636062187 | G79: 0.7872720941
C80: Facilities-Bus Washer | D80: 0.9808341882 | E80: 0.9587049164 | F80: 0.9287843724 | G80: 0.8848084477
C81: Facilities-Dynamoneter | D81: 0.9024682884 | E81: 0.8382336071 | F81: 0.7443222554 | G81: 0.6014047961
C82: Facilities-Fixed Lift | D82: 0.9808341882 | E82: 0.9587049164 | F82: 0.9287843724 | G82: 0.8848084477
C83: Facilities-Fuel Island | D83: 0.9808341882 | E83: 0.9587049164 | F83: 0.9287843724 | G83: 0.8848084477
C84: Facilities-Maintenance Building | D84: 0.9628923658 | E84: 0.9365559547 | F84: 0.8988016213 | G84: 0.8414075748
C85: Facilities-Maintenance Equipment | D85: 0.8940156939 | E85: 0.829339859 | F85: 0.7335699867 | G85: 0.5865303837
C86: Facilities-Major Bus Shop | D86: 0.9808341882 | E86: 0.9587049164 | F86: 0.9287843724 | G86: 0.8848084477
C87: Facilities-Major Rail Shop | D87: 0.9808341882 | E87: 0.9587049164 | F87: 0.9287843724 | G87: 0.8848084477
C88: Facilities-Passenger Building | D88: 0.9860947683 | E88: 0.9643442431 | F88: 0.9353949327 | G88: 0.8933936869
C89: Facilities-Pollution Treatment | D89: 0.9808495659 | E89: 0.9587196166 | F89: 0.9288045714 | G89: 0.8848590639
C90: Facilities-Portable Lift | D90: 0.9024682884 | E90: 0.8382336071 | F90: 0.7443222554 | G90: 0.6014047961
C91: Facilities-Storage Yard | D91: 0.9808341882 | E91: 0.9587049164 | F91: 0.9287843724 | G91: 0.8848084477
C92: Facilities-Storage Yard-Bus | D92: 0.9808341882 | E92: 0.9587049164 | F92: 0.9287843724 | G92: 0.8848084477
C93: Facilities-Train Control Center | D93: 0.9808495659 | E93: 0.9587196166 | F93: 0.9288045714 | G93: 0.8848590639
C94: Facilities-Train Washer | D94: 0.9472406183 | E94: 0.9133206199 | F94: 0.8636062187 | G94: 0.7872720941
C95: Facilities-Vehicle Paintbooth | D95: 0.9808341882 | E95: 0.9587049164 | F95: 0.9287843724 | G95: 0.8848084477
C96: Facilities-Wheel Truing Machine | D96: 0.9502212361 | E96: 0.9168104918 | F96: 0.8681948307 | G96: 0.7939250194
C97: Guideway-At Grade Ballasted or Expressway | D97: 0.9844427654 | E97: 0.9624740033 | F97: 0.9331383464 | G97: 0.8903134882
C98: Guideway-At Grade Bus | D98: 0.9808495659 | E98: 0.9587196166 | F98: 0.9288045714 | G98: 0.8848590639
C99: Guideway-At-Grade Crossing | D99: 0.9356209214 | E99: 0.8935601236 | F99: 0.8319489303 | G99: 0.7376367641
C100: Guideway-Ballasted Curved Platform Track | D100: 0.9379004135 | E100: 0.8973167166 | F100: 0.8378759191 | G100: 0.7468709209
C101: Guideway-Ballasted Tangent Platform Track | D101: 0.9474237679 | E101: 0.912753033 | F101: 0.8621285904 | G101: 0.7846068221
C102: Guideway-Bridge | D102: 0.9844427654 | E102: 0.9624740033 | F102: 0.9331383464 | G102: 0.8903134882
C103: Guideway-Bus Turnaround | D103: 0.9808341882 | E103: 0.9587049164 | F103: 0.9287843724 | G103: 0.8848084477
C104: Guideway-Concrete Tie | D104: 0.9024682884 | E104: 0.8382336071 | F104: 0.7443222554 | G104: 0.6014047961
C105: Guideway-Curved Ballasted Track | D105: 0.9464417031 | E105: 0.9107921476 | F105: 0.8587962672 | G105: 0.77930731
C106: Guideway-Curved Direct Fixation Track | D106: 0.9356209214 | E106: 0.8935601236 | F106: 0.8319489303 | G106: 0.7376367641
C107: Guideway-Curved Embedded Track | D107: 0.9356209214 | E107: 0.8935601236 | F107: 0.8319489303 | G107: 0.7376367641
C108: Guideway-Direct Fixation Curved Platform Track | D108: 0.9251920921 | E108: 0.8800985797 | F108: 0.813169278 | G108: 0.7099839258
C109: Guideway-Direct Fixation Diamond Crossover | D109: 0.9433908831 | E109: 0.9061550925 | F109: 0.8517116049 | G109: 0.7683798247
C110: Guideway-Direct Fixation or Ballasted Turnout | D110: 0.9581867013 | E110: 0.9289921674 | F110: 0.8869249414 | G110: 0.8229463265
C111: Guideway-Direct Fixation Tangent Platform Track | D111: 0.9460364504 | E111: 0.911540675 | F111: 0.8609157598 | G111: 0.783150942
C112: Guideway-Elevated Fill | D112: 0.9927532157 | E112: 0.9707138382 | F112: 0.9423021299 | G112: 0.9019826513
C113: Guideway-Elevated Structure | D113: 0.9848141015 | E113: 0.9642904557 | F113: 0.9410271292 | G113: 0.6016338703
C114: Guideway-Elevated-Bus | D114: 0.9808495659 | E114: 0.9587196166 | F114: 0.9288045714 | G114: 0.8848590639
C115: Guideway-Foot Walk | D115: 0.9914585002 | E115: 0.9694369646 | F115: 0.9410384796 | G115: 0.9005320423
C116: Guideway-Grade Crossing | D116: 0.9024682884 | E116: 0.8382336071 | F116: 0.7443222554 | G116: 0.6014047961
C117: Guideway-Guarded Ballasted Track | D117: 0.9502212361 | E117: 0.9168104918 | F117: 0.8681948307 | G117: 0.7939250194
C118: Guideway-Guarded Curved Direct Fixation Track | D118: 0.9319566404 | E118: 0.890985129 | F118: 0.8301700174 | G118: 0.7363415522
C119: Guideway-Guarded Direct Fixation Track | D119: 0.9411613284 | E119: 0.9024428974 | F119: 0.8458158274 | G119: 0.7591678489
C120: Guideway-Guarded Platform Ballasted Track | D120: 0.9721942857 | E120: 0.9486682958 | F120: 0.9158725841 | G120: 0.8668723474
C121: Guideway-Retained Cut | D121: 0.9927532157 | E121: 0.9707138382 | F121: 0.9423021299 | G121: 0.9019826513
C122: Guideway-Retaining Wall | D122: 0.9507136618 | E122: 0.9275215925 | F122: 0.8908413041 | G122: 0.8333882592
C123: Guideway-Special Trackwork | D123: 0.9468581048 | E123: 0.9115166915 | F123: 0.8599670575 | G123: 0.7811450333
C124: Guideway-Steel Viaduct | D124: 0.9848141015 | E124: 0.9642904557 | F124: 0.9410271292 | G124: 0.6016338703
C125: Guideway-Subway Bus | D125: 0.9808495659 | E125: 0.9587196166 | F125: 0.9288045714 | G125: 0.8848590639
C126: Guideway-Tangent Ballasted Track | D126: 0.9557987369 | E126: 0.9253870767 | F126: 0.8814088707 | G126: 0.8144143788
C127: Guideway-Tangent Direct Fixation Track | D127: 0.9604416322 | E127: 0.932344876 | F127: 0.8920128535 | G127: 0.8308049377
C128: Guideway-Tangent Embedded Track | D128: 0.9604416322 | E128: 0.932344876 | F128: 0.8920128535 | G128: 0.8308049377
C129: Guideway-Tunnel | D129: 0.9927532157 | E129: 0.9707138382 | F129: 0.9423021299 | G129: 0.9019826513
C130: Guideway-Turntable | D130: 0.9502212361 | E130: 0.9168104918 | F130: 0.8681948307 | G130: 0.7939250194
C131: Guideway-Wood Tie | D131: 0.9024682884 | E131: 0.8382336071 | F131: 0.7443222554 | G131: 0.6014047961
C132: Guideway-Yard Track | D132: 0.9503627213 | E132: 0.9169372168 | F132: 0.868327655 | G132: 0.7941034206
C133: Station-Building-Rail | D133: 0.9484020151 | E133: 0.9184137334 | F133: 0.8737175898 | G133: 0.804587411
C134: Stations-At-Grade Rail Platform | D134: 0.971024147 | E134: 0.9486316645 | F134: 0.9168492802 | G134: 0.8690068831
C135: Stations-Building/Ground Access-Bus | D135: 0.9581932584 | E135: 0.9308754626 | F135: 0.8911396305 | G135: 0.8302700924
C136: Stations-Building-Subway | D136: 0.9927532157 | E136: 0.9707138382 | F136: 0.9423021299 | G136: 0.9019826513
C137: Stations-Bus Shelter | D137: 0.9024682884 | E137: 0.8382336071 | F137: 0.7443222554 | G137: 0.6014047961
C138: Stations-Bus Station Platform | D138: 0.971024147 | E138: 0.9486316645 | F138: 0.9168492802 | G138: 0.8690068831
C139: Stations-Elevated Rail Platform | D139: 0.9764731252 | E139: 0.9546338752 | F139: 0.9242948281 | G139: 0.8791333622
C140: Stations-Elevator/Escalator | D140: 0.9808495659 | E140: 0.9587196166 | F140: 0.9288045714 | G140: 0.8848590639
C141: Stations-Ferry Terminal Building/Dock | D141: 0.9704768639 | E141: 0.9478646393 | F141: 0.9157582809 | G141: 0.8673564644
C142: Stations-Parking Equipment | D142: 0.9024682884 | E142: 0.8382336071 | F142: 0.7443222554 | G142: 0.6014047961
C143: Stations-Parking Garage/Lot | D143: 0.9024682884 | E143: 0.8382336071 | F143: 0.7443222554 | G143: 0.6014047961
C144: Stations-Pedestrian Walkway/Elevated | D144: 0.9892597489 | E144: 0.9672774851 | F144: 0.9386407938 | G144: 0.8973919929
C145: Stations-Pedestrian Walkway/Subway | D145: 0.9892597489 | E145: 0.9672774851 | F145: 0.9386407938 | G145: 0.8973919929
C146: Stations-Shelter-Rail | D146: 0.9024682884 | E146: 0.8382336071 | F146: 0.7443222554 | G146: 0.6014047961
C147: Stations-Signage & Graphics | D147: 0.9024682884 | E147: 0.8382336071 | F147: 0.7443222554 | G147: 0.6014047961
C148: Stations-Station Canopy | D148: 0.9704768639 | E148: 0.9478646393 | F148: 0.9157582809 | G148: 0.8673564644
C149: Stations-Subway Rail Platform | D149: 0.98480113 | E149: 0.962795164 | F149: 0.9334642042 | G149: 0.8907584426
C150: Stations-Token Booth | D150: 0.9024682884 | E150: 0.8382336071 | F150: 0.7443222554 | G150: 0.6014047961
C151: Systems-Air Conditioning/HVAC-Subway | D151: 0.9024682884 | E151: 0.8382336071 | F151: 0.7443222554 | G151: 0.6014047961
C152: Systems-Bus On-Board Video System | D152: 0.9024682884 | E152: 0.8382336071 | F152: 0.7443222554 | G152: 0.6014047961
C153: Systems-Central Revenue Collection | D153: 0.9024682884 | E153: 0.8382336071 | F153: 0.7443222554 | G153: 0.6014047961
C154: Systems-Centralized Train Control | D154: 0.9808495659 | E154: 0.9587196166 | F154: 0.9288045714 | G154: 0.8848590639
C155: Systems-Change Machine | D155: 0.8708375057 | E155: 0.7863032115 | F155: 0.662593313 | G155: 0.475165231
C156: Systems-Coin/Bill Counter | D156: 0.7454406647 | E156: 0.5 | F156: 0.25 | G156: 0.25
C157: Systems-Communciations | D157: 0.8940156939 | E157: 0.829339859 | F157: 0.7335699867 | G157: 0.5865303837
C158: Systems-Communications Cable | D158: 0.9024682884 | E158: 0.8382336071 | F158: 0.7443222554 | G158: 0.6014047961
C159: Systems-Communications Hut or Room | D159: 0.9532853268 | E159: 0.9221036236 | F159: 0.8767597914 | G159: 0.8073938382
C160: Systems-Compressed Air Pipes | D160: 0.9024682884 | E160: 0.8382336071 | F160: 0.7443222554 | G160: 0.6014047961
C161: Systems-Deep Utility Well | D161: 0.9712316809 | E161: 0.9474706843 | F161: 0.9141944839 | G161: 0.86426497
C162: Systems-Electrical Systems | D162: 0.9024682884 | E162: 0.8382336071 | F162: 0.7443222554 | G162: 0.6014047961
C163: Systems-Electrification | D163: 0.9498431533 | E163: 0.9168869505 | F163: 0.8687762032 | G163: 0.7950661651
C164: Systems-Electrification Breaker House | D164: 0.9484020151 | E164: 0.9184137334 | F164: 0.8737175898 | G164: 0.804587411
C165: Systems-Electrification Catenary/Pole | D165: 0.9532853268 | E165: 0.9221036236 | F165: 0.8767597914 | G165: 0.8073938382
C166: Systems-Electrification Contact Rail/Protection Boards | D166: 0.9024682884 | E166: 0.8382336071 | F166: 0.7443222554 | G166: 0.6014047961
C167: Systems-Electrification Substation | D167: 0.9532853268 | E167: 0.9221036236 | F167: 0.8767597914 | G167: 0.8073938382
C168: Systems-Electrification Substation Building Components | D168: 0.9581932584 | E168: 0.9308754626 | F168: 0.8911396305 | G168: 0.8302700924
C169: Systems-Emergency Exit | D169: 0.9808495659 | E169: 0.9587196166 | F169: 0.9288045714 | G169: 0.8848590639
C170: Systems-Emergency Location System | D170: 0.9024682884 | E170: 0.8382336071 | F170: 0.7443222554 | G170: 0.6014047961
C171: Systems-Fan Plant | D171: 0.9024682884 | E171: 0.8382336071 | F171: 0.7443222554 | G171: 0.6014047961
C172: Systems-Gates, Flashers, Crossings | D172: 0.9024682884 | E172: 0.8382336071 | F172: 0.7443222554 | G172: 0.6014047961
C173: Systems-Guideway Drainage | D173: 0.9581932584 | E173: 0.9308754626 | F173: 0.8911396305 | G173: 0.8302700924
C174: Systems-Heaters | D174: 0.8940156939 | E174: 0.829339859 | F174: 0.7335699867 | G174: 0.5865303837
C175: Systems-High Tension Towers | D175: 0.9808341882 | E175: 0.9587049164 | F175: 0.9287843724 | G175: 0.8848084477
C176: Systems-In Station Revenue Collection Equipment | D176: 0.8940156939 | E176: 0.829339859 | F176: 0.7335699867 | G176: 0.5865303837
C177: Systems-Interlocking | D177: 0.9529888187 | E177: 0.9252627546 | F177: 0.8841086142 | G177: 0.8205701074
C178: Systems-ITS, APC, AVL, CAD, GPL | D178: 0.8940156939 | E178: 0.829339859 | F178: 0.7335699867 | G178: 0.5865303837
C179: Systems-Lighting | D179: 0.9024682884 | E179: 0.8382336071 | F179: 0.7443222554 | G179: 0.6014047961
C180: Systems-MIS/IT/Network System | D180: 0.8708375057 | E180: 0.7863032115 | F180: 0.662593313 | G180: 0.475165231
C181: Systems-Parking Meter | D181: 0.8708375057 | E181: 0.7863032115 | F181: 0.662593313 | G181: 0.475165231
C182: Systems-Passenger Counter-Rail | D182: 0.9024682884 | E182: 0.8382336071 | F182: 0.7443222554 | G182: 0.6014047961
C183: Systems-Power Cable | D183: 0.9239452953 | E183: 0.8765843224 | F183: 0.8066687951 | G183: 0.6992077837
C184: Systems-Pump Room | D184: 0.9808495659 | E184: 0.9587196166 | F184: 0.9288045714 | G184: 0.8848590639
C185: Systems-Revenue Collection System-Rail | D185: 0.9024682884 | E185: 0.8382336071 | F185: 0.7443222554 | G185: 0.6014047961
C186: Systems-Roadway Traffic Signals | D186: 0.8787107492 | E186: 0.7991923315 | F186: 0.682865947 | G186: 0.5064034761
C187: Systems-SCADA RTU | D187: 0.7454406647 | E187: 0.5 | F187: 0.25 | G187: 0.25
C188: Systems-Signal Bridge | D188: 0.9993530251 | E188: 0.9768922239 | F188: 0.9533854365 | G188: 0.794992315
C189: Systems-Signals & Train Stops | D189: 0.9475268554 | E189: 0.9137963181 | F189: 0.8643578097 | G189: 0.7884527537
C190: Systems-Subway Ventilation | D190: 0.9581932584 | E190: 0.9308754626 | F190: 0.8911396305 | G190: 0.8302700924
C191: Systems-Sump Pump/Discharge Pipes | D191: 0.9024682884 | E191: 0.8382336071 | F191: 0.7443222554 | G191: 0.6014047961
C192: Systems-System Utilities | D192: 0.9024682884 | E192: 0.8382336071 | F192: 0.7443222554 | G192: 0.6014047961
C193: Systems-Train Control | D193: 0.9472406183 | E193: 0.9133206199 | F193: 0.8636062187 | G193: 0.7872720941
C194: Systems-Train Control | D194: 0.9476849708 | E194: 0.9149195413 | F194: 0.8667079902 | G194: 0.7925357088
C195: Systems-Train Control Cable | D195: 0.9456575117 | E195: 0.9106993428 | F195: 0.8594383779 | G195: 0.7807454678
C196: Systems-Train Control, Elec., Comm., Revenue Collect. & Util. | D196: 0.9432058736 | E196: 0.9067056199 | F196: 0.8531447068 | G196: 0.7709388005
C197: Systems-Trolley Wire | D197: 0.9712316809 | E197: 0.9474706843 | F197: 0.9141944839 | G197: 0.86426497
C198: Systems-Tunnel Handrail | D198: 0.9581932584 | E198: 0.9308754626 | F198: 0.8911396305 | G198: 0.8302700924
C199: Systems-Turnstile | D199: 0.9024682884 | E199: 0.8382336071 | F199: 0.7443222554 | G199: 0.6014047961
C200: User Specified | D200: 0.95 | E200: 0.92 | F200: 0.9 | G200: 0.85

Sheet Graph Data
A1: Transit Asset Rehabilitation/Replacement Condition-Based Model
A2: Graph Data
A4: Model Parameters
B5: Init. | D5: Cost | F5: Probability of Transition to State
A6: State | B6: Quantity | C6: Policy | D6: Agency | E6: User | F6: =A7 -> 5-Excellent | G6: =A8 -> 4-Good | H6: =A9 -> 3-Adequate | I6: =A10 -> 2-Marginal | J6: =A11 -> 1-Poor | K6: =A12 -> 0-Failed
A7: =Details!C53 -> 5-Excellent | B7: 1 | C7: 0-Do Minimum | D7: =IF(OR($C7=Details!$D53,AND($C7="Optimal",Results!$E43="Y")),Details!E53,IF(OR($C7=Details!$D54,AND($C7="Optimal",Results!$E44="Y")),Details!E54,Details!E55)) -> 69 | E7: =IF(OR($C7=Details!$D53,AND($C7="Optimal",Results!$E43="Y")),Details!F53,IF(OR($C7=Details!$D54,AND($C7="Optimal",Results!$E44="Y")),Details!F54,Details!F55)) -> 0 | F7: =IF(OR($C7=Details!$D53,AND($C7="Optimal",Results!$E43="Y")),Details!G53,IF(OR($C7=Details!$D54,AND($C7="Optimal",Results!$E44="Y")),Details!G54,Details!G55)) -> 0.95 | G7: =IF(OR($C7=Details!$D53,AND($C7="Optimal",Results!$E43="Y")),Details!H53,IF(OR($C7=Details!$D54,AND($C7="Optimal",Results!$E44="Y")),Details!H54,Details!H55)) -> 0.05 | H7: =IF(OR($C7=Details!$D53,AND($C7="Optimal",Results!$E43="Y")),Details!I53,IF(OR($C7=Details!$D54,AND($C7="Optimal",Results!$E44="Y")),Details!I54,Details!I55)) -> 0 | I7: =IF(OR($C7=Details!$D53,AND($C7="Optimal",Results!$E43="Y")),Details!J53,IF(OR($C7=Details!$D54,AND($C7="Optimal",Results!$E44="Y")),Details!J54,Details!J55)) -> 0 | J7: =IF(OR($C7=Details!$D53,AND($C7="Optimal",Results!$E43="Y")),Details!K53,IF(OR($C7=Details!$D54,AND($C7="Optimal",Results!$E44="Y")),Details!K54,Details!K55)) -> 0 | K7: =IF(OR($C7=Details!$D53,AND($C7="Optimal",Results!$E43="Y")),Details!L53,IF(OR($C7=Details!$D54,AND($C7="Optimal",Results!$E44="Y")),Details!L54,Details!L55)) -> 0
A8: =Details!C56 -> 4-Good | B8: 1 | C8: 0-Do Minimum | D8: =IF(OR($C8=Details!$D56,AND($C8="Optimal",Results!$E46="Y")),Details!E56,IF(OR($C8=Details!$D57,AND($C8="Optimal",Results!$E47="Y")),Details!E57,Details!E58)) -> 69 | E8: =IF(OR($C8=Details!$D56,AND($C8="Optimal",Results!$E46="Y")),Details!F56,IF(OR($C8=Details!$D57,AND($C8="Optimal",Results!$E47="Y")),Details!F57,Details!F58)) -> 7 | F8: =IF(OR($C8=Details!$D56,AND($C8="Optimal",Results!$E46="Y")),Details!G56,IF(OR($C8=Details!$D57,AND($C8="Optimal",Results!$E47="Y")),Details!G57,Details!G58)) -> 0 | G8: =IF(OR($C8=Details!$D56,AND($C8="Optimal",Results!$E46="Y")),Details!H56,IF(OR($C8=Details!$D57,AND($C8="Optimal",Results!$E47="Y")),Details!H57,Details!H58)) -> 0.95 | H8: =IF(OR($C8=Details!$D56,AND($C8="Optimal",Results!$E46="Y")),Details!I56,IF(OR($C8=Details!$D57,AND($C8="Optimal",Results!$E47="Y")),Details!I57,Details!I58)) -> 0.05 | I8: =IF(OR($C8=Details!$D56,AND($C8="Optimal",Results!$E46="Y")),Details!J56,IF(OR($C8=Details!$D57,AND($C8="Optimal",Results!$E47="Y")),Details!J57,Details!J58)) -> 0 | J8: =IF(OR($C8=Details!$D56,AND($C8="Optimal",Results!$E46="Y")),Details!K56,IF(OR($C8=Details!$D57,AND($C8="Optimal",Results!$E47="Y")),Details!K57,Details!K58)) -> 0 | K8: =IF(OR($C8=Details!$D56,AND($C8="Optimal",Results!$E46="Y")),Details!L56,IF(OR($C8=Details!$D57,AND($C8="Optimal",Results!$E47="Y")),Details!L57,Details!L58)) -> 0
A9: =Details!C59 -> 3-Adequate | B9: 0 | C9: 0-Do Minimum | D9: =IF(OR($C9=Details!$D59,AND($C9="Optimal",Results!$E49="Y")),Details!E59,IF(OR($C9=Details!$D60,AND($C9="Optimal",Results!$E50="Y")),Details!E60,Details!E61)) -> 88 | E9: =IF(OR($C9=Details!$D59,AND($C9="Optimal",Results!$E49="Y")),Details!F59,IF(OR($C9=Details!$D60,AND($C9="Optimal",Results!$E50="Y")),Details!F60,Details!F61)) -> 14 | F9: =IF(OR($C9=Details!$D59,AND($C9="Optimal",Results!$E49="Y")),Details!G59,IF(OR($C9=Details!$D60,AND($C9="Optimal",Results!$E50="Y")),Details!G60,Details!G61)) -> 0 | G9: =IF(OR($C9=Details!$D59,AND($C9="Optimal",Results!$E49="Y")),Details!H59,IF(OR($C9=Details!$D60,AND($C9="Optimal",Results!$E50="Y")),Details!H60,Details!H61)) -> 0 | H9: =IF(OR($C9=Details!$D59,AND($C9="Optimal",Results!$E49="Y")),Details!I59,IF(OR($C9=Details!$D60,AND($C9="Optimal",Results!$E50="Y")),Details!I60,Details!I61)) -> 0.9 | I9: =IF(OR($C9=Details!$D59,AND($C9="Optimal",Results!$E49="Y")),Details!J59,IF(OR($C9=Details!$D60,AND($C9="Optimal",Results!$E50="Y")),Details!J60,Details!J61)) -> 0.1 | J9: =IF(OR($C9=Details!$D59,AND($C9="Optimal",Results!$E49="Y")),Details!K59,IF(OR($C9=Details!$D60,AND($C9="Optimal",Results!$E50="Y")),Details!K60,Details!K61)) -> 0 | K9: =IF(OR($C9=Details!$D59,AND($C9="Optimal",Results!$E49="Y")),Details!L59,IF(OR($C9=Details!$D60,AND($C9="Optimal",Results!$E50="Y")),Details!L60,Details!L61)) -> 0
A10: =Details!C62 -> 2-Marginal | B10: 0 | C10: 0-Do Minimum | D10: =IF(OR($C10=Details!$D62,AND($C10="Optimal",Results!$E52="Y")),Details!E62,IF(OR($C10=Details!$D63,AND($C10="Optimal",Results!$E53="Y")),Details!E63,Details!E64)) -> 88 | E10: =IF(OR($C10=Details!$D62,AND($C10="Optimal",Results!$E52="Y")),Details!F62,IF(OR($C10=Details!$D63,AND($C10="Optimal",Results!$E53="Y")),Details!F63,Details!F64)) -> 28 | F10: =IF(OR($C10=Details!$D62,AND($C10="Optimal",Results!$E52="Y")),Details!G62,IF(OR($C10=Details!$D63,AND($C10="Optimal",Results!$E53="Y")),Details!G63,Details!G64)) -> 0 | G10: =IF(OR($C10=Details!$D62,AND($C10="Optimal",Results!$E52="Y")),Details!H62,IF(OR($C10=Details!$D63,AND($C10="Optimal",Results!$E53="Y")),Details!H63,Details!H64)) -> 0 | H10: =IF(OR($C10=Details!$D62,AND($C10="Optimal",Results!$E52="Y")),Details!I62,IF(OR($C10=Details!$D63,AND($C10="Optimal",Results!$E53="Y")),Details!I63,Details!I64)) -> 0 | I10: =IF(OR($C10=Details!$D62,AND($C10="Optimal",Results!$E52="Y")),Details!J62,IF(OR($C10=Details!$D63,AND($C10="Optimal",Results!$E53="Y")),Details!J63,Details!J64)) -> 0.9 | J10: =IF(OR($C10=Details!$D62,AND($C10="Optimal",Results!$E52="Y")),Details!K62,IF(OR($C10=Details!$D63,AND($C10="Optimal",Results!$E53="Y")),Details!K63,Details!K64)) -> 0.05 | K10: =IF(OR($C10=Details!$D62,AND($C10="Optimal",Results!$E52="Y")),Details!L62,IF(OR($C10=Details!$D63,AND($C10="Optimal",Results!$E53="Y")),Details!L63,Details!L64)) -> 0.05
A11: =Details!C65 -> 1-Poor | B11: 0 | C11: 0-Do Minimum | D11: =IF(OR($C11=Details!$D65,AND($C11="Optimal",Results!$E55="Y")),Details!E65,IF(OR($C11=Details!$D66,AND($C11="Optimal",Results!$E56="Y")),Details!E66,Details!E67)) -> 88 | E11: =IF(OR($C11=Details!$D65,AND($C11="Optimal",Results!$E55="Y")),Details!F65,IF(OR($C11=Details!$D66,AND($C11="Optimal",Results!$E56="Y")),Details!F66,Details!F67)) -> 84 | F11: =IF(OR($C11=Details!$D65,AND($C11="Optimal",Results!$E55="Y")),Details!G65,IF(OR($C11=Details!$D66,AND($C11="Optimal",Results!$E56="Y")),Details!G66,Details!G67)) -> 0 | G11: =IF(OR($C11=Details!$D65,AND($C11="Optimal",Results!$E55="Y")),Details!H65,IF(OR($C11=Details!$D66,AND($C11="Optimal",Results!$E56="Y")),Details!H66,Details!H67)) -> 0 | H11: =IF(OR($C11=Details!$D65,AND($C11="Optimal",Results!$E55="Y")),Details!I65,IF(OR($C11=Details!$D66,AND($C11="Optimal",Results!$E56="Y")),Details!I66,Details!I67)) -> 0 | I11: =IF(OR($C11=Details!$D65,AND($C11="Optimal",Results!$E55="Y")),Details!J65,IF(OR($C11=Details!$D66,AND($C11="Optimal",Results!$E56="Y")),Details!J66,Details!J67)) -> 0 | J11: =IF(OR($C11=Details!$D65,AND($C11="Optimal",Results!$E55="Y")),Details!K65,IF(OR($C11=Details!$D66,AND($C11="Optimal",Results!$E56="Y")),Details!K66,Details!K67)) -> 0.9 | K11: =IF(OR($C11=Details!$D65,AND($C11="Optimal",Results!$E55="Y")),Details!L65,IF(OR($C11=Details!$D66,AND($C11="Optimal",Results!$E56="Y")),Details!L66,Details!L67)) -> 0.1
A12: =Details!C68 -> 0-Failed | B12: 0 | C12: =Details!D68 -> 0-Replace | D12: =Details!E68 -> 1700 | E12: =Details!F68 -> 484 | F12: =Details!G68 -> 1 | G12: =Details!H68 -> 0 | H12: =Details!I68 -> 0 | I12: =Details!J68 -> 0 | J12: =Details!K68 -> 0 | K12: =Details!L68 -> 0
A14: Predicted Conditions and Costs
B15: Percent of Quantity by State | H15: Cost | K15: Disc. Cost | N15: Cum. Disc Cost
A16: Period | B16: =F6 -> 5-Excellent | C16: 4-Good | D16: 3-Adequate | E16: 2-Marginal | F16: 1-Poor | G16: 0-Failed | H16: Agency | I16: User | J16: Total | K16: Agency | L16: User | M16: Total | N16: Agency | O16: User | P16: Total
A17: 0 | B17: =B7/(SUM($B$7:$B$12)) -> 0.5 | C17: =B8/SUM($B$7:$B$12) -> 0.5 | D17: =B9/SUM($B$7:$B$12) -> 0 | E17: =B10/SUM($B$7:$B$12) -> 0 | F17: =B11/SUM($B$7:$B$12) -> 0 | G17: =B12/SUM($B$7:$B$12) -> 0 | H17: =($B17*D$7+$C17*D$8+$D17*D$9+$E17*D$10+$F17*D$11+$G17*D$12)*SUM($B$7:$B$12) -> 138 | I17: =($B17*E$7+$C17*E$8+$D17*E$9+$E17*E$10+$F17*E$11+$G17*E$12)*SUM($B$7:$B$12) -> 7 | J17: =H17+I17 -> 145 | K17: =H17*Results!$D$74^$A17 -> 138 | L17: =I17*Results!$D$74^$A17 -> 7 | M17: =K17+L17 -> 145 | N17: =K17 -> 138 | O17: =L17 -> 7 | P17: =N17+O17 -> 145
A18: =A17+1 -> 1 | B18: =$B17*F$7+$C17*F$8+$D17*F$9+$E17*F$10+$F17*F$11+$G17*F$12 -> 0.475 | C18: =$B17*G$7+$C17*G$8+$D17*G$9+$E17*G$10+$F17*G$11+$G17*G$12 -> 0.5 | D18: =$B17*H$7+$C17*H$8+$D17*H$9+$E17*H$10+$F17*H$11+$G17*H$12 -> 0.025 | E18: =$B17*I$7+$C17*I$8+$D17*I$9+$E17*I$10+$F17*I$11+$G17*I$12 -> 0 | F18: =$B17*J$7+$C17*J$8+$D17*J$9+$E17*J$10+$F17*J$11+$G17*J$12 -> 0 | G18: =$B17*K$7+$C17*K$8+$D17*K$9+$E17*K$10+$F17*K$11+$G17*K$12 -> 0 | H18: =($B18*D$7+$C18*D$8+$D18*D$9+$E18*D$10+$F18*D$11+$G18*D$12)*SUM($B$7:$B$12) -> 138.95 | I18: =($B18*E$7+$C18*E$8+$D18*E$9+$E18*E$10+$F18*E$11+$G18*E$12)*SUM($B$7:$B$12) -> 7.7 | J18: =H18+I18 -> 146.65 | K18: =H18*Results!$D$74^$A18 -> 129.8598131 | L18: =I18*Results!$D$74^$A18 -> 7.196261682 | M18: =K18+L18 -> 137.0560748 | N18: =N17+K18 -> 267.8598131 | O18: =O17+L18 -> 14.19626168 | P18: =N18+O18 -> 282.0560748
A19: =A18+1 -> 2 | B19: 0.45125 | C19: 0.49875 | D19: 0.0475 | E19: 0.0025 | F19: 0 | G19: 0 | H19: 139.9 | I19: 8.4525 | J19: =H19+I19 -> 148.3525 | K19: =H19*Results!$D$74^$A19 -> 122.1940781 | L19: =I19*Results!$D$74^$A19 -> 7.382740851 | M19: =K19+L19 -> 129.5768189 | N19: =N18+K19 -> 390.0538912 | O19: =O18+L19 -> 21.57900253 | P19: =N19+O19 -> 411.6328937
A20: 3 | B20: 0.4286875 | C20: 0.496375 | D20: 0.0676875 | E20: 0.007 | F20: 0.000125 | G20: 0.000125 | H20: 141.250625 | I20: 9.3785 | J20: 150.629125 | K20: =H20*Results!$D$74^$A20 -> 115.3025853 | L20: =I20*Results!$D$74^$A20 -> 7.655649638 | M20: 122.9582349 | N20: 505.3564765 | O20: 29.23465217 | P20: 534.5911286
A21: 4 | B21: 0.407378125 | C21: 0.492990625 | D21: 0.0857375 | E21: 0.01306875 | F21: 0.0004625 | G21: 0.0003625 | H21: 142.9546875 | I21: 10.46296875 | J21: 153.4176562 | K21: =H21*Results!$D$74^$A21 -> 109.0594466 | L21: =I21*Results!$D$74^$A21 -> 7.982148763 | M21: 117.0415954 | N21: 614.4159231 | O21: 37.21680093 | P21: 651.632724
A22: 5 | B22: 0.3873717187 | C22: 0.48871 | D22: 0.1018132813 | E22: 0.020335625 | F22: 0.0010696875 | G22: 0.0006996875 | H22: 144.9646872 | I22: 11.68851187 | J22: 156.6531991 | K22: =H22*Results!$D$74^$A22 -> 103.3578185 | L22: =I22*Results!$D$74^$A22 -> 8.333747426 | M22: 111.6915659 | N22: 717.7737416 | O22: 45.55054836 | P22: 763.3242899
A23: 6 | B23: 0.3687028203 | C23: 0.4836430859 | D23: 0.1160674531 | E23: 0.02848339063 | F23: 0.0019795 | G23: 0.00112375 | H23: 147.2338256 | I23: 13.03630777 | J23: 160.2701333 | K23: =H23*Results!$D$74^$A23 -> 98.10811475 | L23: =I23*Results!$D$74^$A23 -> 8.686642307 | M23: 106.7947571 | N23: 815.8818563 | O23: 54.23719067 | P23: 870.119047
A24: 7 | B24: 0.3513914293 | C24: 0.4778960727 | D24: 0.1286428621 | E24: 0.03724179688 | F24: 0.003205719531 | G24: 0.001622119531 | H24: 149.7167883 | I24: 14.48685837 | J24: 164.2036467 | K24: =H24*Results!$D$74^$A24 -> 93.23609127 | L24: =I24*Results!$D$74^$A24 -> 9.02168731 | M24: 102.2577786 | N24: 909.1179476 | O24: 63.25887798 | P24: 972.3768256
A25: 8 | B25: 0.3354439774 | C25: 0.4715708405 | D25: 0.1396733795 | E25: 0.0463819034 | F25: 0.004747237422 | G25: 0.002182661797 | H25: 152.3703386 | I25: 16.02058549 | J25: 168.390924 | K25: =H25*Results!$D$74^$A25 -> 88.6809243 | L25: =I25*Results!$D$74^$A25 -> 9.324126616 | M25: 98.00505092 | N25: 997.7988719 | O25: 72.58300459 | P25: 1070.381876
A26: 9 | B26: 0.3208544403 | C26: 0.4647644973 | D26: 0.1492845836 | E26: 0.05571105101 | F26: 0.00659160885 | G26: 0.002793818912 | H26: 155.1537525 | I26: 17.61829715 | J26: 172.7720497 | K26: =H26*Results!$D$74^$A26 -> 84.3933613 | L26: =I26*Results!$D$74^$A26 -> 9.583186309 | M26: 93.97654761 | N26: 1082.192233 | O26: 82.1661909 | P26: 1164.358424
A27: 10 | B27: 0.3076055372 | C27: 0.4575689945 | D27: 0.1575943501 | E27: 0.06506840427 | F27: 0.008718000515 | G27: 0.003444713436 | H27: 158.0291239 | I27: 19.26154506 | J27: 177.290669 | K27: =H27*Results!$D$74^$A27 -> 80.33399328 | L27: =I27*Results!$D$74^$A27 -> 9.791592795 | M27: 90.12558607 | N27: 1162.526226 | O27: 91.9577837 | P27: 1254.48401
A28: 11 | B28: 0.2956699738 | C28: 0.4500708216 | D28: 0.1647133648 | E28: 0.07432099885 | F28: 0.01109962068 | G28: 0.004125220265 | H28: 160.9615599 | I28: 20.93289114 | J28: 181.8944511 | K28: =H28*Results!$D$74^$A28 -> 76.47167761 | L28: =I28*Results!$D$74^$A28 -> 9.94506579 | M28: 86.4167434 | N28: 1238.997904 | O28: 101.9028495 | P28: 1340.900754
A29: 12 | B29: 0.2850116953 | C29: 0.4423507792 | D29: 0.1707455694 | E29: 0.08336023545 | F29: 0.01370570855 | G29: 0.00482601201 | H29: 163.9192887 | I29: 22.6160987 | J29: 186.5353874 | K29: =H29*Results!$D$74^$A29 -> 72.78212453 | L29: =I29*Results!$D$74^$A29 -> 10.04181829 | M29: 82.82394282 | N29: 1311.780029 | O29: 111.9446678 | P29: 1423.724696
A30: 13 | B30: 0.2755871226 | C30: 0.434483825 | D30: 0.1757885514 | E30: 0.09209876885 | F30: 0.01650314947 | G30: 0.005538582628 | H30: 166.8736944 | I30: 24.29626114 | J30: 191.1699555 | K30: =H30*Results!$D$74^$A30 -> 69.24665046 | L30: =I30*Results!$D$74^$A30 -> 10.08208459 | M30: 79.32873505 | N30: 1381.026679 | O30: 122.0267524 | P30: 1503.053431
A31: 14 | B31: 0.2673463491 | C31: 0.4265389899 | D31: 0.1799338875 | E31: 0.1004677471 | F31: 0.01945777297 | G31: 0.006255253389 | H31: 169.799294 | I31: 25.95987969 | J31: 195.7591737 | K31: =H31*Results!$D$74^$A31 -> 65.85109374 | L31: =I31*Results!$D$74^$A31 -> 10.06768892 | M31: 75.91878266 | N31: 1446.877773 | O31: 132.0944413 | P31: 1578.972214
A32: 15 | B32: 0.260234285 | C32: 0.4185793579 | D32: 0.1832674483 | E32: 0.1084143612 | F32: 0.02253538302 | G32: 0.006969164652 | H32: 172.6736684 | I32: 27.59489952 | J32: 200.2685679 | K32: =H32*Results!$D$74^$A32 -> 62.58488381 | L32: =I32*Results!$D$74^$A32 -> 10.00166149 | M32: 72.5865453 | N32: 1509.462657 | O32: 142.0961028 | P32: 1651.558759
A33: 16 | B33: 0.2541917354 | C33: 0.4106621042 | D33: 0.1858696714 | E33: 0.1158996699 | F33: 0.02570256278 | G33: 0.00767425636 | H33: 175.4773566 | I33: 29.19071247 | J33: 204.6680691 | K33: =H33*Results!$D$74^$A33 -> 59.44025181 | L33: =I33*Results!$D$74^$A33 -> 9.887904249 | M33: 69.32815606 | N33: 1568.902908 | O33: 151.984007 | P33: 1720.886915
A34: 17 | B34: 0.249156405 | C34: 0.4028385858 | D34: 0.1878158094 | E34: 0.12289667 | F34: 0.02892728999 | G34: 0.008365239771 | H34: 178.1937234 | I34: 30.7381332 | J34: 208.9318566 | K34: =H34*Results!$D$74^$A34 -> 56.41156936 | L34: =I34*Results!$D$74^$A34 -> 9.730905783 | M34: 66.14247514 | N34: 1625.314478 | O34: 161.7149128 | P34: 1787.029391
A35: 18 | B35: 0.2450638245 | C35: 0.3951544767 | D35: 0.1891761578 | E35: 0.129388584 | F35: 0.0321793945 | G35: 0.0090375625 | H35: 180.8088061 | I35: 32.22935457 | J35: 213.0381606 | K35: =H35*Results!$D$74^$A35 -> 53.49480146 | L35: =I35*Results!$D$74^$A35 -> 9.535503063 | M35: 63.03030453 | N35: 1678.809279 | O35: 171.2504159 | P35: 1850.059695
A36: 19 | B36: 0.2418481958 | C36: 0.3876499441 | D36: 0.1900162658 | E36: 0.1353673413 | F36: 0.03543088424 | G36: 0.009687368647 | H36: 183.3111472 | I36: 33.65788718 | J36: 216.9690344 | K36: =H36*Results!$D$74^$A36 -> 50.68705973 | L36: =I36*Results!$D$74^$A36 -> 9.306686277 | M36: 59.99374601 | N36: 1729.496339 | O36: 180.5571022 | P36: 1910.053441
A37: 20 | B37: 0.2394431547 | C37: 0.3803598567 | D37: 0.1903971365 | E37: 0.1408322338 | F37: 0.03865616289 | G37: 0.01031145549 | H37: 185.6916181 | I37: 35.01848719 | J37: 220.7101053 | K37: =H37*Results!$D$74^$A37 -> 47.98624277 | L37: =I37*Results!$D$74^$A37 -> 9.049442539 | M37: 57.03568531 | N37: 1777.482582 | O37: 189.6065447 | P37: 1967.089126
A38: 21 | B38: 0.2377824524 | C38: 0.3733140216 | D38: 0.1903754156 | E38: 0.1457887241 | F38: 0.04183215829 | G38: 0.01090722798 | H38: 187.943237 | I38: 36.30707576 | J38: 224.2503128 | K38: =H38*Results!$D$74^$A38 -> 45.3907513 | L38: =I38*Results!$D$74^$A38 -> 8.768633938 | M38: 54.15938524 | N38: 1822.873333 | O38: 198.3751786 | P38: 2021.248512
A39: 22 | B39: 0.2368005578 | C39: 0.3665374432 | D39: 0.1900035752 | E39: 0.1502473932 | F39: 0.04493837866 | G39: 0.01147265203 | H39: 190.0609861 | I39: 37.52065311 | J39: 227.5816392 | K39: =H39*Results!$D$74^$A39 -> 42.89926675 | L39: =I39*Results!$D$74^$A39 -> 8.468905373 | M39: 51.36817213 | N39: 1865.7726 | O39: 206.844084 | P39: 2072.616684
A40: 23 | B40: 0.2364331819 | C40: 0.3600505989 | D40: 0.1893300898 | E40: 0.1542230114 | F40: 0.04795691046 | G40: 0.01200620753 | H40: 192.0416294 | I40: 38.65720938 | J40: 230.6988388 | K40: =H40*Results!$D$74^$A40 -> 40.51058319 | L40: =I40*Results!$D$74^$A40 -> 8.154617838 | M40: 48.66520103 | N40: 1906.283183 | O40: 214.9987018 | P40: 2121.281885
A41: 24 | B41: 0.2366177303 | C41: 0.353869728 | D41: 0.1883996108 | E41: 0.1577337192 | F41: 0.05087236998 | G41: 0.01250684162 | H41: 193.883534 | I41: 39.71563441 | J41: 233.5991684 | K41: =H41*Results!$D$74^$A41 -> 38.22348338 | L41: =I41*Results!$D$74^$A41 -> 7.829803084 | M41: 46.05328647 | N41: 1944.506666 | O41: 222.8285049 | P41: 2167.335171
A42: 25 | B42: 0.2372936854 | C42: 0.3480071282 | D42: 0.1872531361 | E42: 0.1608003084 | F42: 0.05367181894 | G42: 0.01297392296 | H42: 195.5864967 | I42: 40.69562788 | J42: 236.2821246 | K42: =H42*Results!$D$74^$A42 -> 36.03665115 | L42: =I42*Results!$D$74^$A42 -> 7.498135966 | M42: 43.53478712 | N42: 1980.543318 | O42: 230.3266409 | P42: 2210.869958
A43: 26 | B43: 0.2384029241 | C43: 0.342471456 | D43: 0.1859281789 | E43: 0.1634455912 | F43: 0.05634465247 | G43: 0.01340719731 | H43: 197.1515777 | I43: 41.59761111 | J43: 238.7491888 | K43: =H43*Results!$D$74^$A43 -> 33.94861312 | L43: =I43*Results!$D$74^$A43 -> 7.162921154 | M43: 41.11153427 | N43: 2014.491931 | O43: 237.489562 | P43: 2251.981493
A44: 27 | B44: 0.2398899752 | C44: 0.3372680294 | D44: 0.1844589338 | E44: 0.1656938499 | F44: 0.05888246678 | G44: 0.01380674481 | H44: 198.5809411 | I44: 42.42264155 | J44: 241.0035826 | K44: =H44*Results!$D$74^$A44 -> 31.95770379 | L44: =I44*Results!$D$74^$A44 -> 6.827091286 | M44: 38.78479507 | N44: 2046.449634 | O44: 244.3166533 | P44: 2290.766288
A45: 28 | B45: 0.2417022213 | C45: 0.3323991267 | D45: 0.1828764419 | E45: 0.1675703583 | F45: 0.0612789126 | G45: 0.01417293918 | H45: 199.8777047 | I45: 43.17233065 | J45: 243.0500353 | K45: =H45*Results!$D$74^$A45 -> 30.062049 | L45: =I45*Results!$D$74^$A45 -> 6.493214046 | M45: 36.55526304 | N45: 2076.511683 | O45: 250.8098674 | P45: 2327.321551
A46: 29 | B46: 0.2437900494 | C46: 0.3278642814 | D46: 0.181208754 | E46: 0.1691009667 | F46: 0.06352953926 | G46: 0.01450640918 | H46: 201.0457986 | I46: 43.84876587 | J46: 244.8945645 | K46: =H46*Results!$D$74^$A46 -> 28.25956347 | L46: =I46*Results!$D$74^$A46 -> 6.16350598 | M46: 34.42306945 | N46: 2104.771247 | O46: 256.9733734 | P46: 2361.74462
A47: 30 | B47: 0.2461069561 | C47: 0.3236605698 | D47: 0.1794810927 | E47: 0.1703117454 | F47: 0.06563163367 | G47: 0.01480800226 | H47: 202.0898333 | I47: 44.45443696 | J47: 246.5442703 | K47: =H47*Results!$D$74^$A47 -> 26.54795881 | L47: =I47*Results!$D$74^$A47 -> 5.839851228 | M47: 32.38781004 | N47: 2131.319206 | O47: 262.8132246 | P47: 2394.13243
A48: 31 | B48: 0.2486096106 | C48: 0.3197828892 | D48: 0.1777160119 | E48: 0.1712286801 | F48: 0.06758405757 | G48: 0.01507875064 | H48: 203.0149771 | I48: 44.99216716 | J48: 248.0071442 | K48: =H48*Results!$D$74^$A48 -> 24.92475914 | L48: =I48*Results!$D$74^$A48 -> 5.52382364 | M48: 30.44858278 | N48: 2156.243965 | O48: 268.3370482 | P48: 2424.581013
A49: 32 | B49: 0.2512578807 | C49: 0.3162242252 | D49: 0.1759335552 | E49: 0.1718774133 | F49: 0.06938708582 | G49: 0.01531983976 | H49: 203.8268434 | I49: 45.46504915 | J49: 249.2918925 | K49: =H49*Results!$D$74^$A49 -> 23.38732187 | L49: =I49*Results!$D$74^$A49 -> 5.216711013 | M49: 28.60403289 | N49: 2179.631287 | O49: 273.5537592 | P49: 2453.185046
A50: 33 | B50: 0.2540148264 | C50: 0.312975908 | D50: 0.1741514109 | E50: 0.1722830275 | F50: 0.0710422479 | G50: 0.01553257925 | H50: 204.5313876 | I50: 45.87638612 | J50: 250.4077737 | K50: =H50*Results!$D$74^$A50 -> 21.93286175 | L50: =I50*Results!$D$74^$A50 -> 4.919540449 | M50: 26.8524022 | N50: 2201.564148 | O50: 278.4732997 | P50: 2480.037448
A51: 34 | B51: 0.2568466643 | C51: 0.3100278539 | D51: 0.1723850652 | E51: 0.1724698659 | F51: 0.07255217449 | G51: 0.01571837617 | H51: 205.1348131 | I51: 46.22963771 | J51: 251.3644508 | K51: =H51*Results!$D$74^$A51 -> 20.55847654 | L51: =I51*Results!$D$74^$A51 -> 4.633103997 | M51: 25.19158054 | N51: 2222.122625 | O51: 283.1064037 | P51: 2505.229029
A52: 35 | B52: 0.2597227073 | C52: 0.3073687944 | D52: 0.1706479514 | E52: 0.1724613858 | F52: 0.07392045033 | G52: 0.01587871074 | H52: 205.6434864 | I52: 46.52837102 | J52: 252.1718574 | K52: =H52*Results!$D$74^$A52 -> 19.26117331 | L52: =I52*Results!$D$74^$A52 -> 4.357983975 | M52: 23.61915729 | N52: 2241.383798 | O52: 287.4643877 | P52: 2528.848186
A53: 36 | B53: 0.2626152827 | C53: 0.3049864901 | D53: 0.168951596 | E53: 0.1722800424 | F53: 0.07515147459 | G53: 0.01601511432 | H53: 206.0638612 | I53: 46.77621632 | J53: 252.8400775 | K53: =H53*Results!$D$74^$A53 -> 18.03789426 | L53: =I53*Results!$D$74^$A53 -> 4.094577471 | M53: 22.13247173 | N53: 2259.421693 | O53: 291.5589651 | P53: 2550.980658
A54: 37 | B54: 0.2654996328 | C54: 0.3028679297 | D54: 0.1673057609 | E54: 0.1719471977 | F54: 0.07625032925 | G54: 0.01612914958 | H54: 206.4024109 | I54: 46.9768275 | J54: 253.3792384 | K54: =H54*Results!$D$74^$A54 -> 16.88554145 | L54: =I54*Results!$D$74^$A54 -> 3.843119685 | M54: 20.72866114 | N54: 2276.307234 | O54: 295.4020848 | P54: 2571.709319
A55: 38 | B55: 0.2683538008 | C55: 0.3009995149 | D55: 0.1657185813 | E55: 0.171483054 | F55: 0.07722265621 | G55: 0.01622239281 | H55: 206.6655684 | I55: 47.13384699 | J55: 253.7994154 | K55: =H55*Results!$D$74^$A55 -> 15.80100007 | L55: =I55*Results!$D$74^$A55 -> 3.603705857 | M55: 19.40470592 | N55: 2292.108234 | O55: 299.0057907 | P55: 2591.114025
A56: =A55+1 -> 39 | B56: =$B55*F$7+$C55*F$8+$D55*F$9+$E55*F$10+$F55*F$11+$G55*F$12 -> 0.2711585036 | C56: =$B55*G$7+$C55*G$8+$D55*G$9+$E55*G$10+$F55*G$11+$G55*G$12 -> 0.2993672292 | D56: =$B55*H$7+$C55*H$8+$D55*H$9+$E55*H$10+$F55*H$11+$G55*H$12 -> 0.1641966989 | E56: =$B55*I$7+$C55*I$8+$D55*I$9+$E55*I$10+$F55*I$11+$G55*I$12 -> 0.1709066068 | F56: =$B55*J$7+$C55*J$8+$D55*J$9+$E55*J$10+$F55*J$11+$G55*J$12 -> 0.07807454329 | G56: =$B55*K$7+$C55*K$8+$D55*K$9+$E55*K$10+$F55*K$11+$G55*K$12 -> 0.01629641832 | H56: 206.8596748 | I56: 47.25087497 | J56: =H56+I56 -> 254.1105498 | K56: =H56*Results!$D$74^$A56 -> 14.78115965 | L56: =I56*Results!$D$74^$A56 -> 3.376311634 | M56: =K56+L56 -> 18.15747129 | N56: =N55+K56 -> 2306.889394 | O56: =O55+L56 -> 302.3821023 | P56: =N56+O56 -> 2609.271496
A57: 40 | B57: 0.2738969967 | C57: 0.2979567929 | D57: 0.1627453905 | E57: 0.170235616 | F57: 0.0788124193 | G57: 0.01635278467 | H57: 206.9909338 | I57: 47.33144253 | J57: 254.3223763 | K57: =H57*Results!$D$74^$A57 -> 13.82293342 | L57: =I57*Results!$D$74^$A57 -> 3.160811766 | M57: 16.98374519 | N57: 2320.712327 | O57: 305.5429141 | P57: 2626.255241
A58: 41 | B58: 0.2765549315 | C58: 0.2967538031 | D58: 0.1613686911 | E58: 0.1694865934 | F58: 0.07944295817 | G58: 0.01639302273 | H58: 207.0653734 | I58: 47.3789888 | J58: 254.4443622 | K58: =H58*Results!$D$74^$A58 -> 12.92327526 | L58: =I58*Results!$D$74^$A58 -> 2.956997125 | M58: 15.88027239 | N58: 2333.635602 | O58: 308.4999112 | P58: 2642.135514
A59: 42 | B59: 0.2791202077 | C59: 0.2957438595 | D59: 0.1600695121 | E59: 0.1686748032 | F59: 0.07997299202 | G59: 0.01641862549 | H59: 207.088814 | I59: 47.39684148 | J59: 254.4856555 | K59: =H59*Results!$D$74^$A59 -> 12.07919461 | L59: =I59*Results!$D$74^$A59 -> 2.764590037 | M59: 14.84378464 | N59: 2345.714797 | O59: 311.2645012 | P59: 2656.979298
A60: 43 | B60: 0.2815828228 | C60: 0.2949126769 | D60: 0.1588497539 | E60: 0.1678142741 | F60: 0.08040943298 | G60: 0.01643103936 | H60: 207.0668419 | I60: 47.38820078 | J60: 254.4550427 | K60: =H60*Results!$D$74^$A60 -> 11.28776916 | L60: =I60*Results!$D$74^$A60 -> 2.583257978 | M60: 13.87102714 | N60: 2357.002566 | O60: 313.8477592 | P60: 2670.850325
A61: 44 | B61: 0.283934721 | C61: 0.2942461842 | D61: 0.1577104123 | E61: 0.1669178221 | F61: 0.08075920339 | G61: 0.016431657 | H61: 207.0047878 | I61: 47.35612631 | J61: 254.3609141 | K61: =H61*Results!$D$74^$A61 -> 10.54615554 | L61: =I61*Results!$D$74^$A61 -> 2.412625713 | M61: 12.95878125 | N61: 2367.548722 | O61: 316.2603849 | P61: 2683.809107
A62: 45 | B62: 0.286169642 | C62: 0.293730611 | D62: 0.1566516803 | E62: 0.1659970811 | F62: 0.08102917415 | G62: 0.01642181144 | H62: 206.9077105 | I62: 47.30352688 | J62: 254.2112374 | K62: =H62*Results!$D$74^$A62 -> 9.85159794 | L62: =I62*Results!$D$74^$A62 -> 2.252285944 | M62: 12.10388388 | N62: 2377.40032 | O62: 318.5126709 | P62: 2695.912991
A63: 46 | B63: 0.2882829713 | C63: 0.2933525626 | D63: 0.1556730428 | E63: 0.165062541 | F63: 0.08122611079 | G63: 0.01640277147 | H63: 206.7803849 | I63: 47.23315277 | J63: 254.0135377 | K63: =H63*Results!$D$74^$A63 -> 9.201435071 | L63: =I63*Results!$D$74^$A63 -> 2.101808586 | M63: 11.30324366 | N63: 2386.601755 | O63: 320.6144795 | P63: 2707.216234
A64: 47 | B64: 0.2902715942 | C64: 0.293099083 | D64: 0.1547733667 | E64: 0.1641235912 | F64: 0.08135662676 | G64: 0.01637573813 | H64: 206.627294 | I64: 47.14759034 | J64: 253.7748843 | K64: =H64*Results!$D$74^$A64 -> 8.593105365 | L64: =I64*Results!$D$74^$A64 -> 1.960748765 | M64: 10.55385413 | N64: 2395.19486 | O64: 322.5752282 | P64: 2717.770088
A65: 48 | B65: 0.2921337526 | C65: 0.2929577086 | D65: 0.1539509842 | E65: 0.1631885687 | F65: 0.08142714365 | G65: 0.01634184224 | H65: 206.4526238 | I65: 47.04925874 | J65: 253.5018826 | K65: =H65*Results!$D$74^$A65 -> 8.024150726 | L65: =I65*Results!$D$74^$A65 -> 1.828653648 | M65: 9.852804374 | N65: 2403.219011 | O65: 324.4038819 | P65: 2727.622893
A66: 49 | B66: 0.2938689072 | C66: 0.2929165108 | D66: 0.1532037712 | E66: 0.1622648103 | F66: 0.08144385772 | G66: 0.0163021428 | H66: 206.2602625 | I66: 46.94040845 | J66: 253.200671 | K66: =H66*Results!$D$74^$A66 -> 7.492218933 | L66: =I66*Results!$D$74^$A66 -> 1.705068211 | M66: 9.197287144 | N66: 2410.71123 | O66: 326.1089501 | P66: 2736.82018
A67: 50 | B67: 0.2954776047 | C67: 0.2929641306 | D67: 0.1525292196 | E67: 0.1613587064 | F67: 0.08141271246 | G67: 0.01625762629 | H67: 206.0538012 | I67: 46.82312147 | J67: 252.8769227 | K67: =H67*Results!$D$74^$A67 -> 6.99506487 | L67: =I67*Results!$D$74^$A67 -> 1.589540063 | M67: 8.584604933 | N67: 2417.706295 | O67: 327.6984901 | P67: 2745.404785
A68: 51 | B68: 0.2969613507 | C68: 0.2930898043 | D68: 0.1519245042 | E68: 0.1604757577 | F68: 0.08133937653 | G68: 0.01620920656 | H68: 205.8365381 | I68: 46.69931302 | J68: 252.5358511 | K68: =H68*Results!$D$74^$A68 -> 6.530550723 | L68: =I68*Results!$D$74^$A68 -> 1.481623405 | M68: 8.012174128 | N68: 2424.236845 | O68: 329.1801135 | P68: 2753.416959
A69: 52 | B69: 0.2983224898 | C69: 0.2932833816 | D69: 0.151386544 | E69: 0.1596206323 | F69: 0.08122922677 | G69: 0.01615772554 | H69: 205.611484 | I69: 46.5707344 | J69: 252.1822184 | K69: =H69*Results!$D$74^$A69 -> 6.096645291 | L69: =I69*Results!$D$74^$A69 -> 1.380882249 | M69: 7.47752754 | N69: 2430.333491 | O69: 330.5609958 | P69: 2760.894486
A70: 53 | B70: 0.2995640908 | C70: 0.293535337 | D70: 0.1509120587 | E70: 0.1587972235 | F70: 0.08108733571 | G70: 0.01610395429 | H70: 205.3813704 | I70: 46.43897703 | J70: 251.8203474 | K70: =H70*Results!$D$74^$A70 -> 5.691422547 | L70: =I70*Results!$D$74^$A70 -> 1.286892966 | M70: 6.978315513 | N70: 2436.024913 | O70: 331.8478888 | P70: 2767.872802
A71: 54 | B71: 0.3006898406 | C71: 0.2938367747 | D71: 0.1504976196 | E71: 0.158008707 | F71: 0.08091846331 | G71: 0.01604859475 | H71: 205.1486581 | I71: 46.30547734 | J71: 251.4541354 | K71: =H71*Results!$D$74^$A71 -> 5.313059573 | L71: =I71*Results!$D$74^$A71 -> 1.199246254 | M71: 6.512305827 | N71: 2441.337973 | O71: 333.047135 | P71: 2774.385108
A72: 55 | B72: 0.3017039433 | C72: 0.294179428 | D72: 0.1501396964 | E72: 0.1572575983 | F72: 0.08072705233 | G72: 0.01599228168 | H72: 204.915548 | I72: 46.17152246 | J72: 251.0870705 | K72: =H72*Results!$D$74^$A72 -> 4.959833975 | L72: =I72*Results!$D$74^$A72 -> 1.117548609 | M72: 6.077382584 | N72: 2446.297807 | O72: 334.1646836 | P72: 2780.46249
A73: 56 | B73: 0.3026110278 | C73: 0.2945556538 | D73: 0.1498346982 | E73: 0.1565458081 | F73: 0.08051722701 | G73: 0.01593558515 | H73: 204.6839926 | I73: 46.03825652 | J73: 250.7222491 | K73: =H73*Results!$D$74^$A73 -> 4.63012088 | L73: =I73*Results!$D$74^$A73 -> 1.041423367 | M73: 5.671544248 | N73: 2450.927928 | O73: 335.206107 | P73: 2786.134035
A74: 57 | B74: 0.3034160616 | C74: 0.2949584225 | D74: 0.149579011 | E74: 0.1558746971 | F74: 0.08029279472 | G74: 0.01587901311 | H74: 204.4557079 | I74: 45.90668746 | J74: 250.3623953 | K74: =H74*Results!$D$74^$A74 -> 4.322389618 | L74: =I74*Results!$D$74^$A74 -> 0.9705113706 | M74: 5.292900988 | N74: 2455.250317 | O74: 336.1766184 | P74: 2791.426936
A75: 58 | B75: 0.3041242716 | C75: 0.2953813044 | D75: 0.1493690311 | E75: 0.1552451285 | F75: 0.0800572501 | G75: 0.01582301433 | H75: 204.2321863 | I75: 45.77769421 | J75: 250.0098805 | K75: =H75*Results!$D$74^$A75 -> 4.035200147 | L75: =I75*Results!$D$74^$A75 -> 0.9044713361 | M75: 4.939671483 | N75: 2459.285517 | O75: 337.0810897 | P75: 2796.366607
A76: 59 | B76: 0.3047410723 | C76: 0.2958184528 | D76: 0.1492011932 | E76: 0.1546575188 | F76: 0.07981378151 | G76: 0.01576798143 | H76: 204.0147102 | I76: 45.65203412 | J76: 249.6667443 | K76: =H76*Results!$D$74^$A76 -> 3.767199322 | L76: =I76*Results!$D$74^$A76 -> 0.8429799589 | M76: 4.610179281 | N76: 2463.052717 | O76: 337.9240697 | P76: 2800.976786
A77: 60 | B77: 0.3052720001 | C77: 0.2962645838 | D77: 0.1490719965 | E77: 0.1541118862 | F77: 0.0795652793 | G77: 0.01571425409 | H77: 203.804365 | I77: 45.53035058 | J77: 249.3347156 | K77: =H77*Results!$D$74^$A77 -> 3.517117036 | L77: =I77*Results!$D$74^$A77 -> 0.7857318056 | M77: 4.302848842 | N77: 2466.569834 | O77: 338.7098015 | P77: 2805.279635
A78: 61 | B78: 0.3057226542 | C78: 0.2967149546 | D78: 0.148978026 | E78: 0.1536078972 | F78: 0.07931434568 | G78: 0.01566212224 | H78: 203.602053 | I78: 45.41318074 | J78: 249.0152337 | K78: =H78*Results!$D$74^$A78 -> 3.283762311 | L78: =I78*Results!$D$74^$A78 -> 0.7324390357 | M78: 4.016201347 | N78: 2469.853596 | O78: 339.4422405 | P78: 2809.295837
A79: 62 | B79: 0.3060986438 | C79: 0.2971653396 | D79: 0.1489159712 | E79: 0.1531449101 | F79: 0.07906330597 | G79: 0.01561182943 | H79: 203.4085067 | I79: 45.3009632 | J79: 248.7094699 | K79: =H79*Results!$D$74^$A79 -> 3.066019376 | L79: =I79*Results!$D$74^$A79 -> 0.6828309846 | M79: 3.74885036 | N79: 2472.919615 | O79: 340.1250715 | P79: 2813.044687
A80: 63 | B80: 0.306405541 | C80: 0.2976120048 | D80: 0.148882641 | E80: 0.1527220162 | F80: 0.07881422088 | G80: 0.0155635761 | H80: 203.2243026 | I80: 45.1940457 | J80: 248.4183483 | K80: =H80*Results!$D$74^$A80 -> 2.862843765 | L80: =I80*Results!$D$74^$A80 -> 0.6366536397 | M80: 3.499497405 | N80: 2475.782459 | O80: 340.7617251 | P80: 2816.544184
A81: 64 | B81: 0.3066488401 | C81: 0.2980516816 | D81: 0.1488749772 | E81: 0.1523380787 | F81: 0.0785688996 | G81: 0.0155175229 | H81: 203.049874 | I81: 45.09269261 | J81: 248.1425666 | K81: =H81*Results!$D$74^$A81 -> 2.673258476 | L81: =I81*Results!$D$74^$A81 -> 0.5936690348 | M81: 3.266927511 | N81: 2478.455718 | O81: 341.3553942 | P81: 2819.811112
A82: 65 | B82: 0.3068339209 | C82: 0.2984815395 | D82: 0.1488900635 | E82: 0.1519917685 | F82: 0.07832891358 | G82: 0.0154737939 | H82: =($B82*D$7+$C82*D$8+$D82*D$9+$E82*D$10+$F82*D$11+$G82*D$12)*SUM($B$7:$B$12) -> 202.885524 | I82: =($B82*E$7+$C82*E$8+$D82*E$9+$E82*E$10+$F82*E$11+$G82*E$12)*SUM($B$7:$B$12) -> 44.99709234 | J82: 247.8826164 | K82: =H82*Results!$D$74^$A82 -> 2.496350207 | L82: =I82*Results!$D$74^$A82 -> 0.553654586 | M82: 3.050004793 | N82: 2480.952068 | O82: 341.9090487 | P82: 2822.861117
A83: 66 | B83: 0.3069660188 | C83: 0.2988991586 | D83: 0.1489251341 | E83: 0.151681598 | F83: 0.07809561065 | G83: 0.01543247978 | H83: 202.7314381 | I83: 44.90736449 | J83: 247.6388026 | K83: =H83*Results!$D$74^$A83 -> 2.3312657 | L83: =I83*Results!$D$74^$A83 -> 0.5164023867 | M83: 2.847668086 | N83: 2483.283334 | O83: 342.4254511 | P83: 2825.708785
A84: 67 | B84: 0.3070501976 | C84: 0.2993025016 | D84: 0.1489775787 | E84: 0.1514059517 | F84: 0.07787012948 | G84: 0.01539364097 | H84: 202.5876959 | I84: 44.82356673 | J84: 247.4112626 | K84: =H84*Results!$D$74^$A84 -> 2.177208194 | L84: =I84*Results!$D$74^$A84 -> 0.4817184792 | M84: 2.658926673 | N84: 2485.460542 | O84: 342.9071696 | P84: 2828.367711
A85: 68 | B85: 0.3070913287 | C85: 0.2996898864 | D85: 0.1490449459 | E85: 0.1511631144 | F85: 0.07765341412 | G85: 0.01535731053 | H85: 202.454283 | I85: 44.74570146 | J85: 247.1999844 | K85: =H85*Results!$D$74^$A85 -> 2.033434025 | L85: =I85*Results!$D$74^$A85 -> 0.4494221139 | M85: 2.482856139 | N85: 2487.493976 | O85: 343.3565917 | P85: 2830.850568
A86: 69 | B86: 0.3070940728 | C86: 0.3000599585 | D86: 0.1491249456 | E86: 0.1509512975 | F86: 0.07744622842 | G86: 0.01532349713 | H86: 202.3311016 | I86: 44.67372215 | J86: 247.0048237 | K86: =H86*Results!$D$74^$A86 -> 1.899249347 | L86: =I86*Results!$D$74^$A86 -> 0.4193450091 | M86: 2.318594356 | N86: 2489.393225 | O86: 343.7759367 | P86: 2833.169162
A87: 70 | B87: 0.3070628663 | C87: 0.3004116642 | D87: 0.149215449 | E87: 0.1507686623 | F87: 0.07724917046 | G87: 0.01529218772 | H87: 202.217981 | I87: 44.60753931 | J87: 246.8255203 | K87: =H87*Results!$D$74^$A87 -> 1.774007012 | L87: =I87*Results!$D$74^$A87 -> 0.3913306181 | M87: 2.16533763 | N87: 2491.167232 | O87: 344.1672674 | P87: 2835.3345
A88: 71 | B88: 0.3070019107 | C88: 0.3007442243 | D88: 0.1493144873 | E88: 0.150613341 | F88: 0.07706268653 | G88: 0.01526335016 | H88: 202.1146878 | I88: 44.54702617 | J88: 246.661714 | K88: =H88*Results!$D$74^$A88 -> 1.657103595 | L88: =I88*Results!$D$74^$A88 -> 0.3652334128 | M88: 2.022337008 | N88: 2492.824336 | O88: 344.5325008 | P88: 2837.356837
A89: 72 | B89: 0.3069151653 | C89: 0.3010571087 | D89: 0.1494202498 | E89: 0.1504834556 | F89: 0.07688708492 | G89: 0.0152369357 | H89: 202.0209343 | I89: 44.49202406 | J89: 246.5129583 | K89: =H89*Results!$D$74^$A89 -> 1.547976566 | L89: =I89*Results!$D$74^$A89 -> 0.3409181869 | M89: 1.888894753 | N89: 2494.372312 | O89: 344.873419 | P89: 2839.245731
A90: 73 | B90: 0.3068063428 | C90: 0.3013500115 | D90: 0.1495310802 | E90: 0.150377135 | F90: 0.07672254921 | G90: 0.01521288127 | H90: 201.9363878 | I90: 44.44234731 | J90: 246.3787351 | K90: =H90*Results!$D$74^$A90 -> 1.446101619 | L90: =I90*Results!$D$74^$A90 -> 0.3182593841 | M90: 1.764361003 | N90: 2495.818414 | O90: 345.1916783 | P90: 2841.010092
A91: 74 | B91: 0.3066789069 | C91: 0.3016228281 | D91: 0.1496454728 | E91: 0.1502925295 | F91: 0.07656915104 | G91: 0.01519111167 | H91: 201.8606781 | I91: 44.39778796 | J91: 246.2584661 | K91: =H91*Results!$D$74^$A91 -> 1.350990139 | L91: =I91*Results!$D$74^$A91 -> 0.297140455 | M91: 1.648130594 | N91: 2497.169404 | O91: 345.4888188 | P91: 2842.658223
A92: 75 | B92: 0.3065360732 | C92: 0.301875632 | D92: 0.1497620669 | E92: 0.1502278239 | F92: 0.07642686242 | G92: 0.01517154158 | H92: 201.7934053 | I92: 44.35811999 | J92: 246.1515253 | K92: =H92*Results!$D$74^$A92 -> 1.262186825 | L92: =I92*Results!$D$74^$A92 -> 0.2774532427 | M92: 1.539640068 | N92: 2498.431591 | O92: 345.766272 | P92: 2844.197863
A93: 76 | B93: 0.3063808112 | C93: 0.3021086541 | D93: 0.1498796418 | E93: 0.1501812482 | F93: 0.07629556737 | G93: 0.01515407744 | H93: 201.734146 | I93: 44.3231033 | J93: 246.0572493 | K93: =H93*Results!$D$74^$A93 -> 1.179267446 | L93: =I93*Results!$D$74^$A93 -> 0.2590974006 | M93: 1.438364847 | N93: 2499.610858 | O93: 346.0253694 | P93: 2845.636228
A94: 77 | B94: 0.306215848 | C94: 0.3023222619 | D94: 0.1499971103 | E94: 0.1501510875 | F94: 0.07617507304 | G94: 0.01513861915 | H94: 201.6824599 | I94: 44.29248726 | J94: 245.9749472 | K94: =H94*Results!$D$74^$A94 -> 1.101836736 | L94: =I94*Results!$D$74^$A94 -> 0.2419798411 | M94: 1.343816577 | N94: 2500.712695 | O94: 346.2673493 | P94: 2846.980044
A95: 78 | B95: 0.3060436748 | C95: 0.3025169412 | D95: 0.1501135124 | E95: 0.1501356898 | F95: 0.07606512011 | G95: 0.01512506168 | H95: 201.6378955 | I95: 44.26601404 | J95: 245.9039095 | K95: =H95*Results!$D$74^$A95 -> 1.029526421 | L95: =I95*Results!$D$74^$A95 -> 0.2260142167 | M95: 1.255540638 | N95: 2501.742222 | O95: 346.4933635 | P95: 2848.235585
A96: 79 | B96: 0.3058665527 | C96: 0.3026932779 | D96: 0.1502280082 | E96: 0.1501334721 | F96: 0.07596539259 | G96: 0.0151132965 | H96: 201.5999944 | I96: 44.24342153 | J96: 245.8434159 | K96: =H96*Results!$D$74^$A96 -> 0.9619933691 | L96: =I96*Results!$D$74^$A96 -> 0.2111204332 | M96: 1.173113802 | N96: 2502.704215 | O96: 346.7044839 | P96: 2849.408699
A97: 80 | B97: 0.3056865216 | C97: 0.3028519416 | D97: 0.1503398713 | E97: 0.1501429257 | F97: 0.07587552694 | G97: 0.01510321286 | H97: 201.5682967 | I97: 44.22444599 | J97: 245.7927427 | K97: =H97*Results!$D$74^$A97 -> 0.8989178638 | L97: =I97*Results!$D$74^$A97 -> 0.1972241924 | M97: 1.096142056 | N97: 2503.603133 | O97: 346.9017081 | P97: 2850.504841
A98: 81 | B98: 0.3055054084 | C98: 0.3029936706 | D98: 0.1504484812 | E98: 0.1501626203 | F98: 0.07579512053 | G98: 0.01509469898 | H98: 201.5423445 | I98: 44.20882446 | J98: 245.751169 | K98: =H98*Results!$D$74^$A98 -> 0.8400019879 | L98: =I98*Results!$D$74^$A98 -> 0.1842565666 | M98: 1.024258554 | N98: 2504.443135 | O98: 347.0859647 | P98: 2851.529099
A99: 82 | B99: 0.3053248369 | C99: 0.3031192575 | D99: 0.1505533167 | E99: 0.1501912064 | F99: 0.07572373949 | G99: 0.01508764307 | H99: 201.5216857 | I99: 44.19629675 | J99: 245.7179824 | K99: =H99*Results!$D$74^$A99 -> 0.7849681163 | L99: =I99*Results!$D$74^$A99 -> 0.1721536007 | M99: 0.9571217171 | N99: 2505.228103 | O99: 347.2581183 | P99: 2852.486221
A100: 83 | B100: 0.3051462381 | C100: 0.3032295365 | D100: 0.1506539479 | E100: 0.1502274174 | F100: 0.07566092586 | G100: 0.01508193427 | H100: 201.5058766 | I100: 44.18660734 | J100: 245.692484 | K100: =H100*Results!$D$74^$A100 -> 0.7335575112 | L100: =I100*Results!$D$74^$A100 -> 0.1608559425 | M100: 0.8944134537 | N100: 2505.96166 | O100: 347.4189742 | P100: 2853.380635
A101: 84 | B101: 0.3049708605 | C101: 0.3033253716 | D101: 0.1507500299 | E101: 0.1502700704 | F101: 0.07560620414 | G101: 0.01507746345 | H101: 201.4944854 | I101: 44.1795069 | J101: 245.6739923 | K101: =H101*Results!$D$74^$A101 -> 0.6855290118 | L101: =I101*Results!$D$74^$A101 -> 0.1503084993 | M101: 0.8358375111 | N101: 2506.647189 | O101: 347.5692827 | P101: 2854.216472
A102: 85 | B102: 0.3047997809 | C102: 0.303407646 | D102: 0.1508412955 | E102: 0.1503180664 | F102: 0.07555908725 | G102: 0.01507412394 | H102: 201.4870933 | I102: 44.17475366 | J102: 245.661847 | K102: =H102*Results!$D$74^$A102 -> 0.6406578155 | L102: =I102*Results!$D$74^$A102 -> 0.1404601194 | M102: 0.7811179348 | N102: 2507.287847 | O102: 347.7097428 | P102: 2854.99759
A103: 86 | B103: 0.3046339158 | C103: 0.3034772528 | D103: 0.1509275482 | E103: 0.1503703893 | F103: 0.07551908184 | G103: 0.01507181204 | H103: 201.4832976 | I103: 44.1721145 | J103: 245.6554121 | K103: =H103*Results!$D$74^$A103 -> 0.5987343424 | L103: =I103*Results!$D$74^$A103 -> 0.131263297 | M103: 0.7299976394 | N103: 2507.886582 | O103: 347.8410061 | P103: 2855.727588
A104: 87 | B104: 0.3044740321 | C104: 0.3035350859 | D104: 0.1510086561 | E104: 0.1504261052 | F104: 0.07548569312 | G104: 0.01507042765 | H104: 201.4827123 | I104: 44.17136587 | J104: 245.6540781 | K104: =H104*Results!$D$74^$A104 -> 0.5595631803 | L104: =I104*Results!$D$74^$A104 -> 0.1226738994 | M104: 0.6822370797 | N104: 2508.446145 | O104: 347.96368 | P104: 2856.409825
A105: 88 | B105: 0.3043207581 | C105: 0.3035820332 | D105: 0.1510845447 | E105: 0.1504843603 | F105: 0.07545842907 | G105: 0.01506987457 | H105: 201.4849695 | I105: 44.17229456 | J105: 245.6572641 | K105: =H105*Results!$D$74^$A105 -> 0.5229621022 | L105: =I105*Results!$D$74^$A105 -> 0.1146509145 | M105: 0.6376130167 | N105: 2508.969107 | O105: 348.078331 | P105: 2857.047438
A106: 89 | B106: 0.3041745948 | C106: 0.3036189695 | D106: 0.1511551919 | E106: 0.1505443787 | F106: 0.07543680417 | G106: 0.01507006092 | H106: 201.489721 | I106: 44.17469823 | J106: 245.6644192 | K106: =H106*Results!$D$74^$A106 -> 0.4887611539 | L106: =I106*Results!$D$74^$A106 -> 0.1071562181 | M106: 0.595917372 | N106: 2509.457868 | O106: 348.1854872 | P106: 2857.643355
A107: 90 | B107: 0.304035926 | C107: 0.3036467507 | D107: 0.1512206212 | E107: 0.15060546 | F107: 0.07542034269 | G107: 0.01507089935 | H107: 201.4966378 | I107: 44.17838581 | J107: 245.6750236 | K107: =H107*Results!$D$74^$A107 -> 0.4568018059 | L107: =I107*Results!$D$74^$A107 -> 0.1001543581 | M107: 0.556956164 | N107: 2509.91467 | O107: 348.2856415 | P107: 2858.200311
A108: 91 | B108: 0.303905029 | C108: 0.3036662095 | D108: 0.1512808966 | E108: 0.1506669762 | F108: 0.07540858143 | G108: 0.01507230727 | H108: 201.5054116 | I108: 44.18317782 | J108: 245.6885894 | K108: =H108*Results!$D$74^$A108 -> 0.4269361649 | L108: =I108*Results!$D$74^$A108 -> 0.09361235683 | M108: 0.5205485217 | N108: 2510.341606 | O108: 348.3792539 | P108: 2858.72086
A109: 92 | B109: 0.3037820848 | C109: 0.3036781505 | D109: 0.1513361174 | E109: 0.1507283682 | F109: 0.07540107209 | G109: 0.01507420695 | H109: 201.5157543 | I109: 44.18890645 | J109: 245.7046607 | K109: =H109*Results!$D$74^$A109 -> 0.3990262414 | L109: =I109*Results!$D$74^$A109 -> 0.08749952736 | M109: 0.4865257688 | N109: 2510.740632 | O109: 348.4667534 | P109: 2859.207386
A110: 93 | B110: 0.3036671875 | C110: 0.3036833472 | D110: 0.1513864132 | E110: 0.1507891431 | F110: 0.07539738329 | G110: 0.01507652562 | H110: 201.5273983 | I110: 44.19541564 | J110: 245.7228139 | K110: =H110*Results!$D$74^$A110 -> 0.3729432692 | L110: =I110*Results!$D$74^$A110 -> 0.08178730501 | M110: 0.4547305742 | N110: 2511.113575 | O110: 348.5485407 | P110: 2859.662116
A111: 94 | B111: 0.3035603538 | C111: 0.3036825392 | D111: 0.1514319393 | E111: 0.1508488701 | F111: 0.07539710212 | G111: 0.01507919549 | H111: 201.5400963 | I111: 44.20256096 | J111: 245.7426573 | K111: =H111*Results!$D$74^$A111 -> 0.3485670728 | L111: =I111*Results!$D$74^$A111 -> 0.07644909161 | M111: 0.4250161644 | N111: 2511.462143 | O111: 348.6249898 | P111: 2860.087132
A112: 95 | B112: 0.3034615316 | C112: 0.3036764299 | D112: 0.1514728723 | E112: 0.150907177 | F112: 0.07539983541 | G112: 0.01508215372 | H112: 201.5536211 | I112: 44.21020951 | J112: 245.7638306 | K112: =H112*Results!$D$74^$A112 -> 0.3257854805 | L112: =I112*Results!$D$74^$A112 -> 0.07146011206 | M112: 0.3972455925 | N112: 2511.787928 | O112: 348.6964499 | P112: 2860.484378
A113: 96 | B113: 0.3033706087 | C113: 0.303665685 | D113: 0.1515094066 | E113: 0.1509637466 | F113: 0.07540521073 | G113: 0.01508534239 | H113: 201.5677647 | I113: 44.21823962 | J113: 245.7860043 | K113: =H113*Results!$D$74^$A113 -> 0.3044937775 | L113: =I113*Results!$D$74^$A113 -> 0.06679728197 | M113: 0.3712910594 | N113: 2512.092422 | O113: 348.7632472 | P113: 2860.855669
A114: 97 | B114: 0.3032874207 | C114: 0.3036509312 | D114: 0.1515417502 | E114: 0.1510183126 | F114: 0.07541287698 | G114: 0.0150887084 | H114: 201.5823385 | I114: 44.22654061 | J114: 245.8088791 | K114: =H114*Results!$D$74^$A114 -> 0.2845941991 | L114: =I114*Results!$D$74^$A114 -> 0.06243908567 | M114: 0.3470332848 | N114: 2512.377016 | O114: 348.8256863 | P114: 2861.202702
A115: 98 | B115: 0.3032117581 | C115: 0.3036327557 | D115: 0.1515701217 | E115: 0.1510706563 | F115: 0.07542250491 | G115: 0.01509220333 | H115: 201.597172 | I115: 44.23501239 | J115: 245.8321844 | K115: =H115*Results!$D$74^$A115 -> 0.2659954589 | L115: =I115*Results!$D$74^$A115 -> 0.05836546368 | M115: 0.3243609226 | N115: 2512.643011 | O115: 348.8840518 | P115: 2861.527063
A116: 99 | B116: 0.3031433735 | C116: 0.3036117058 | D116: 0.1515947473 | E116: 0.1511206029 | F116: 0.07543378724 | G116: 0.01509578331 | H116: 201.6121124 | I116: 44.24356506 | J116: 245.8556774 | K116: =H116*Results!$D$74^$A116 -> 0.2486123101 | L116: =I116*Results!$D$74^$A116 -> 0.05455770881 | M116: 0.3031700189 | N116: 2512.891624 | O116: 348.9386095 | P116: 2861.830233
A117: 100 | B117: 0.3030819881 | C117: 0.3035882892 | D117: 0.1516158579 | E117: 0.1511680173 | F117: 0.07544643866 | G117: 0.01509940887 | H117: 201.6270237 | I117: 44.25211852 | J117: 245.8791422 | K117: =H117*Results!$D$74^$A117 -> 0.2323651379 | L117: =I117*Results!$D$74^$A117 -> 0.05099837033 | M117: 0.2833635082 | N117: 2513.123989 | O117: 348.9896078 | P117: 2862.113597
A119: Labels
A120: Optimal
A121: =Details!D53 -> 0-Do Minimum
A122: =Details!D54 -> 1-Rehab
A123: =Details!D55 -> 2-Replace
A124: Optimal
A125: =Details!D56 -> 0-Do Minimum
A126: =Details!D57 -> 1-Rehab
A127: =Details!D58 -> 2-Replace
A128: Optimal
A129: =Details!D59 -> 0-Do Minimum
A130: =Details!D60 -> 1-Rehab
A131: =Details!D61 -> 2-Replace
A132: Optimal
A133: =Details!D62 -> 0-Do Minimum
A134: =Details!D63 -> 1-Rehab
A135: =Details!D64 -> 2-Replace
A136: Optimal
A137: =Details!D65 -> 0-Do Minimum
A138: =Details!D66 -> 1-Rehab
A139: =Details!D67 -> 2-Replace
